Workbook

Sheet 은평구총괄
B1: 은평구 등록장애인 현황 (2022. 9월 말 기준)
B3: 서울특별시 은평구 | J3: (단위 : 명)
B5: 자치구 | C5: 장애유형 | D5: 합계 | G5: 심한 장애 | J5: 심하지 않은 장애
D6: 계 | E6: 남 | F6: 여 | G6: 계 | H6: 남 | I6: 여 | J6: 계 | K6: 남 | L6: 여
B7: 은평구 | C7: 합 계 | D7: =SUM(D8:D22) -> 21750 | E7: =SUM(E8:E22) -> 12689 | F7: 9061 | G7: 8265 | H7: 5139 | I7: 3126 | J7: 13485 | K7: 7550 | L7: 5935
C8: 지체 | D8: 8816 | E8: 4838 | F8: 3978 | G8: 1439 | H8: 930 | I8: 509 | J8: 7377 | K8: 3908 | L8: 3469
C9: 시각 | D9: 2272 | E9: 1358 | F9: 914 | G9: 427 | H9: 231 | I9: 196 | J9: 1845 | K9: 1127 | L9: 718
C10: 청각 | D10: 3367 | E10: 1867 | F10: 1500 | G10: 700 | H10: 353 | I10: 347 | J10: 2667 | K10: 1514 | L10: 1153
C11: 언어 | D11: 179 | E11: 132 | F11: 47 | G11: 94 | H11: 71 | I11: 23 | J11: 85 | K11: 61 | L11: 24
C12: 지적 | D12: 1825 | E12: 1198 | F12: 627 | G12: 1825 | H12: 1198 | I12: 627 | J12: 0 | K12: 0 | L12: 0
C13: 뇌병변 | D13: 2226 | E13: 1321 | F13: 905 | G13: 1310 | H13: 739 | I13: 571 | J13: 916 | K13: 582 | L13: 334
C14: 자폐성 | D14: 397 | E14: 335 | F14: 62 | G14: 397 | H14: 335 | I14: 62 | J14: 0 | K14: 0 | L14: 0
C15: 정신 | D15: 1142 | E15: 703 | F15: 439 | G15: 1136 | H15: 697 | I15: 439 | J15: 6 | K15: 6 | L15: 0
C16: 신장 | D16: 897 | E16: 542 | F16: 355 | G16: 714 | H16: 444 | I16: 270 | J16: 183 | K16: 98 | L16: 85
C17: 심장 | D17: 54 | E17: 24 | F17: 30 | G17: 44 | H17: 17 | I17: 27 | J17: 10 | K17: 7 | L17: 3
C18: 호흡기 | D18: 127 | E18: 91 | F18: 36 | G18: 122 | H18: 89 | I18: 33 | J18: 5 | K18: 2 | L18: 3
C19: 간 | D19: 165 | E19: 110 | F19: 55 | G19: 12 | H19: 8 | I19: 4 | J19: 153 | K19: 102 | L19: 51
C20: 안면 | D20: 22 | E20: 11 | F20: 11 | G20: 10 | H20: 6 | I20: 4 | J20: 12 | K20: 5 | L20: 7
C21: 장루.요루 | D21: 193 | E21: 123 | F21: 70 | G21: 25 | H21: 14 | I21: 11 | J21: 168 | K21: 109 | L21: 59
C22: 뇌전증 | D22: 68 | E22: 36 | F22: 32 | G22: 10 | H22: 7 | I22: 3 | J22: 58 | K22: 29 | L22: 29

Sheet 유형별
A1: 은평구 동별 장애인현황(유형별) (2022. 9월말)
A2: 동별 | B2: 합계 | F2: 지체 | I2: 시각 | L2: 청각 | O2: 언어 | S2: 지적 | W2: 뇌병변 | Z2: 자폐 | AC2: 정신 | AF2: 신장 | AI2: 심장 | AM2: 호흡기 | AP2: 간 | AS2: 안면 | AV2: 장루.요루 | AY2: 뇌전증
B3: 합계 | C3: 남성 | D3: 여성 | F3: 소계 | G3: 남성 | H3: 여성 | I3: 소계 | J3: 남성 | K3: 여성 | L3: 소계 | M3: 남성 | N3: 여성 | O3: 소계 | Q3: 남성 | R3: 여성 | S3: 소계 | T3: 남성 | V3: 여성 | W3: 소계 | X3: 남성 | Y3: 여성 | Z3: 소계 | AA3: 남성 | AB3: 여성 | AC3: 소계 | AD3: 남성 | AE3: 여성 | AF3: 소계 | AG3: 남성 | AH3: 여성 | AI3: 소계 | AJ3: 남성 | AL3: 여성 | AM3: 소계 | AN3: 남성 | AO3: 여성 | AP3: 소계 | AQ3: 남성 | AR3: 여성 | AS3: 소계 | AT3: 남성 | AU3: 여성 | AV3: 소계 | AW3: 남성 | AX3: 여성 | AY3: 소계 | AZ3: 남성 | BA3: 여성
A4: 합 계 | B4: =SUM(B5:B20) -> 21750 | C4: =SUM(C5:C20) -> 12689 | D4: =SUM(D5:E20) -> 9061 | F4: =SUM(F5:F20) -> 8816 | G4: 4838 | H4: 3978 | I4: 2272 | J4: 1358 | K4: 914 | L4: 3367 | M4: 1867 | N4: 1500 | O4: =SUM(O5:P20) -> 179 | Q4: =SUM(Q5:Q20) -> 132 | R4: =SUM(R5:R20) -> 47 | S4: =SUM(S5:S20) -> 1825 | T4: =SUM(T5:U20) -> 1198 | V4: =SUM(V5:V20) -> 627 | W4: 2226 | X4: 1321 | Y4: 905 | Z4: 397 | AA4: 335 | AB4: 62 | AC4: 1142 | AD4: 703 | AE4: 439 | AF4: 897 | AG4: 542 | AH4: 355 | AI4: 54 | AJ4: =SUM(AJ5:AK20) -> 24 | AL4: =SUM(AL5:AL20) -> 30 | AM4: 127 | AN4: 91 | AO4: 36 | AP4: 165 | AQ4: 110 | AR4: 55 | AS4: 22 | AT4: 11 | AU4: 11 | AV4: 193 | AW4: 123 | AX4: 70 | AY4: 68 | AZ4: 36 | BA4: 32
A5: 녹번동 | B5: =SUM(F5,I5,L5,O5,S5,W5,Z5,AC5,AF5,AI5,AM5,AP5,AS5,AV5,AY5) -> 1662 | C5: =SUM(G5,J5,M5,Q5,T5,X5,AA5,AD5,AG5,AJ5,AN5,AQ5,AT5,AW5,AZ5) -> 948 | D5: =SUM(H5,K5,N5,R5,V5,Y5,AB5,AE5,AH5,AL5,AO5,AR5,AU5,AX5,BA5) -> 714 | F5: 702 | G5: 385 | H5: 317 | I5: 186 | J5: 121 | K5: 65 | L5: 289 | M5: 153 | N5: 136 | O5: 19 | Q5: 15 | R5: 4 | S5: 109 | T5: 71 | V5: 38 | W5: 162 | X5: 81 | Y5: 81 | Z5: 18 | AA5: 13 | AB5: 5 | AC5: 67 | AD5: 36 | AE5: 31 | AF5: 72 | AG5: 48 | AH5: 24 | AI5: 2 | AJ5: 0 | AL5: 2 | AM5: 5 | AN5: 3 | AO5: 2 | AP5: 12 | AQ5: 9 | AR5: 3 | AS5: 3 | AT5: 3 | AU5: 0 | AV5: 15 | AW5: 9 | AX5: 6 | AY5: 1 | AZ5: 1 | BA5: 0
A6: 불광1동 | B6: =SUM(F6,I6,L6,O6,S6,W6,Z6,AC6,AF6,AI6,AM6,AP6,AS6,AV6,AY6) -> 1698 | C6: =SUM(G6,J6,M6,Q6,T6,X6,AA6,AD6,AG6,AJ6,AN6,AQ6,AT6,AW6,AZ6) -> 949 | D6: =SUM(H6,K6,N6,R6,V6,Y6,AB6,AE6,AH6,AL6,AO6,AR6,AU6,AX6,BA6) -> 749 | F6: 696 | G6: 371 | H6: 325 | I6: 194 | J6: 120 | K6: 74 | L6: 279 | M6: 152 | N6: 127 | O6: 14 | Q6: 10 | R6: 4 | S6: 103 | T6: 59 | V6: 44 | W6: 175 | X6: 96 | Y6: 79 | Z6: 27 | AA6: 23 | AB6: 4 | AC6: 70 | AD6: 34 | AE6: 36 | AF6: 90 | AG6: 54 | AH6: 36 | AI6: 4 | AJ6: 2 | AL6: 2 | AM6: 8 | AN6: 8 | AO6: 0 | AP6: 20 | AQ6: 10 | AR6: 10 | AS6: 1 | AT6: 1 | AU6: 0 | AV6: 13 | AW6: 7 | AX6: 6 | AY6: 4 | AZ6: 2 | BA6: 2
A7: 불광2동 | B7: 1432 | C7: 838 | D7: 594 | F7: 560 | G7: 316 | H7: 244 | I7: 163 | J7: 100 | K7: 63 | L7: 256 | M7: 153 | N7: 103 | O7: 11 | Q7: 9 | R7: 2 | S7: 101 | T7: 62 | V7: 39 | W7: 133 | X7: 82 | Y7: 51 | Z7: 22 | AA7: 22 | AB7: 0 | AC7: 66 | AD7: 28 | AE7: 38 | AF7: 70 | AG7: 42 | AH7: 28 | AI7: 5 | AJ7: 3 | AL7: 2 | AM7: 5 | AN7: 4 | AO7: 1 | AP7: 9 | AQ7: 4 | AR7: 5 | AS7: 2 | AT7: 1 | AU7: 1 | AV7: 18 | AW7: 7 | AX7: 11 | AY7: 11 | AZ7: 5 | BA7: 6
A8: 갈현1동 | B8: 989 | C8: 580 | D8: 409 | F8: 400 | G8: 223 | H8: 177 | I8: 117 | J8: 69 | K8: 48 | L8: 153 | M8: 87 | N8: 66 | O8: 7 | Q8: 5 | R8: 2 | S8: 73 | T8: 49 | V8: 24 | W8: 94 | X8: 59 | Y8: 35 | Z8: 17 | AA8: 14 | AB8: 3 | AC8: 59 | AD8: 33 | AE8: 26 | AF8: 44 | AG8: 21 | AH8: 23 | AI8: 1 | AJ8: 1 | AL8: 0 | AM8: 6 | AN8: 4 | AO8: 2 | AP8: 8 | AQ8: 7 | AR8: 1 | AS8: 0 | AT8: 0 | AU8: 0 | AV8: 8 | AW8: 7 | AX8: 1 | AY8: 2 | AZ8: 1 | BA8: 1
A9: 갈현2동 | B9: 1230 | C9: 709 | D9: 521 | F9: 519 | G9: 287 | H9: 232 | I9: 128 | J9: 85 | K9: 43 | L9: 186 | M9: 110 | N9: 76 | O9: 18 | Q9: 14 | R9: 4 | S9: 104 | T9: 61 | V9: 43 | W9: 106 | X9: 57 | Y9: 49 | Z9: 16 | AA9: 12 | AB9: 4 | AC9: 62 | AD9: 24 | AE9: 38 | AF9: 62 | AG9: 37 | AH9: 25 | AI9: 6 | AJ9: 2 | AL9: 4 | AM9: 6 | AN9: 6 | AO9: 0 | AP9: 9 | AQ9: 7 | AR9: 2 | AS9: 0 | AT9: 0 | AU9: 0 | AV9: 6 | AW9: 6 | AX9: 0 | AY9: 2 | AZ9: 1 | BA9: 1
A10: 구산동 | B10: 2183 | C10: 1504 | D10: 679 | F10: 654 | G10: 370 | H10: 284 | I10: 153 | J10: 97 | K10: 56 | L10: 234 | M10: 133 | N10: 101 | O10: 16 | Q10: 11 | R10: 5 | S10: 401 | T10: 315 | V10: 86 | W10: 225 | X10: 163 | Y10: 62 | Z10: 42 | AA10: 34 | AB10: 8 | AC10: 327 | AD10: 287 | AE10: 40 | AF10: 54 | AG10: 36 | AH10: 18 | AI10: 3 | AJ10: 2 | AL10: 1 | AM10: 30 | AN10: 22 | AO10: 8 | AP10: 14 | AQ10: 12 | AR10: 2 | AS10: 3 | AT10: 1 | AU10: 2 | AV10: 20 | AW10: 16 | AX10: 4 | AY10: 7 | AZ10: 5 | BA10: 2
A11: 대조동 | B11: 1242 | C11: 715 | D11: 527 | F11: 522 | G11: 287 | H11: 235 | I11: 147 | J11: 84 | K11: 63 | L11: 223 | M11: 130 | N11: 93 | O11: 7 | Q11: 5 | R11: 2 | S11: 67 | T11: 47 | V11: 20 | W11: 117 | X11: 69 | Y11: 48 | Z11: 13 | AA11: 10 | AB11: 3 | AC11: 62 | AD11: 32 | AE11: 30 | AF11: 58 | AG11: 35 | AH11: 23 | AI11: 5 | AJ11: 2 | AL11: 3 | AM11: 5 | AN11: 4 | AO11: 1 | AP11: 4 | AQ11: 3 | AR11: 1 | AS11: 0 | AT11: 0 | AU11: 0 | AV11: 9 | AW11: 6 | AX11: 3 | AY11: 3 | AZ11: 1 | BA11: 2
A12: 응암1동 | B12: 1340 | C12: 743 | D12: 597 | F12: 581 | G12: 321 | H12: 260 | I12: 142 | J12: 78 | K12: 64 | L12: 224 | M12: 110 | N12: 114 | O12: 8 | Q12: 6 | R12: 2 | S12: 70 | T12: 36 | V12: 34 | W12: 154 | X12: 96 | Y12: 58 | Z12: 19 | AA12: 18 | AB12: 1 | AC12: 51 | AD12: 27 | AE12: 24 | AF12: 55 | AG12: 27 | AH12: 28 | AI12: 9 | AJ12: 4 | AL12: 5 | AM12: 6 | AN12: 5 | AO12: 1 | AP12: 11 | AQ12: 6 | AR12: 5 | AS12: 0 | AT12: 0 | AU12: 0 | AV12: 8 | AW12: 8 | AX12: 0 | AY12: 2 | AZ12: 1 | BA12: 1
A13: 응암2동 | B13: 985 | C13: 558 | D13: 427 | F13: 398 | G13: 224 | H13: 174 | I13: 95 | J13: 48 | K13: 47 | L13: 155 | M13: 79 | N13: 76 | O13: 8 | Q13: 7 | R13: 1 | S13: 66 | T13: 40 | V13: 26 | W13: 105 | X13: 58 | Y13: 47 | Z13: 28 | AA13: 22 | AB13: 6 | AC13: 49 | AD13: 31 | AE13: 18 | AF13: 47 | AG13: 28 | AH13: 19 | AI13: 2 | AJ13: 1 | AL13: 1 | AM13: 6 | AN13: 5 | AO13: 1 | AP13: 8 | AQ13: 4 | AR13: 4 | AS13: 1 | AT13: 0 | AU13: 1 | AV13: 11 | AW13: 6 | AX13: 5 | AY13: 6 | AZ13: 5 | BA13: 1
A14: 응암3동 | B14: 1351 | C14: 778 | D14: 573 | F14: 578 | G14: 315 | H14: 263 | I14: 148 | J14: 85 | K14: 63 | L14: 218 | M14: 112 | N14: 106 | O14: 13 | Q14: 10 | R14: 3 | S14: 95 | T14: 64 | V14: 31 | W14: 139 | X14: 86 | Y14: 53 | Z14: 15 | AA14: 12 | AB14: 3 | AC14: 56 | AD14: 31 | AE14: 25 | AF14: 48 | AG14: 37 | AH14: 11 | AI14: 2 | AJ14: 1 | AL14: 1 | AM14: 9 | AN14: 7 | AO14: 2 | AP14: 12 | AQ14: 6 | AR14: 6 | AS14: 3 | AT14: 2 | AU14: 1 | AV14: 9 | AW14: 8 | AX14: 1 | AY14: 6 | AZ14: 2 | BA14: 4
A15: 역촌동 | B15: 2117 | C15: 1187 | D15: 930 | F15: 893 | G15: 474 | H15: 419 | I15: 202 | J15: 122 | K15: 80 | L15: 334 | M15: 187 | N15: 147 | O15: 20 | Q15: 12 | R15: 8 | S15: 186 | T15: 110 | V15: 76 | W15: 231 | X15: 140 | Y15: 91 | Z15: 34 | AA15: 29 | AB15: 5 | AC15: 88 | AD15: 39 | AE15: 49 | AF15: 75 | AG15: 42 | AH15: 33 | AI15: 1 | AJ15: 1 | AL15: 0 | AM15: 12 | AN15: 5 | AO15: 7 | AP15: 12 | AQ15: 8 | AR15: 4 | AS15: 1 | AT15: 1 | AU15: 0 | AV15: 20 | AW15: 12 | AX15: 8 | AY15: 8 | AZ15: 5 | BA15: 3
A16: 신사1동 | B16: 1231 | C16: 728 | D16: 503 | F16: 509 | G16: 290 | H16: 219 | I16: 153 | J16: 87 | K16: 66 | L16: 175 | M16: 107 | N16: 68 | O16: 10 | Q16: 6 | R16: 4 | S16: 126 | T16: 80 | V16: 46 | W16: 120 | X16: 65 | Y16: 55 | Z16: 24 | AA16: 20 | AB16: 4 | AC16: 44 | AD16: 28 | AE16: 16 | AF16: 37 | AG16: 26 | AH16: 11 | AI16: 1 | AJ16: 0 | AL16: 1 | AM16: 9 | AN16: 6 | AO16: 3 | AP16: 6 | AQ16: 5 | AR16: 1 | AS16: 3 | AT16: 1 | AU16: 2 | AV16: 11 | AW16: 6 | AX16: 5 | AY16: 3 | AZ16: 1 | BA16: 2
A17: 신사2동 | B17: 882 | C17: 512 | D17: 370 | F17: 379 | G17: 205 | H17: 174 | I17: 85 | J17: 55 | K17: 30 | L17: 126 | M17: 70 | N17: 56 | O17: 8 | Q17: 7 | R17: 1 | S17: 81 | T17: 49 | V17: 32 | W17: 78 | X17: 47 | Y17: 31 | Z17: 16 | AA17: 14 | AB17: 2 | AC17: 33 | AD17: 21 | AE17: 12 | AF17: 50 | AG17: 30 | AH17: 20 | AI17: 2 | AJ17: 0 | AL17: 2 | AM17: 6 | AN17: 5 | AO17: 1 | AP17: 5 | AQ17: 4 | AR17: 1 | AS17: 0 | AT17: 0 | AU17: 0 | AV17: 9 | AW17: 3 | AX17: 6 | AY17: 4 | AZ17: 2 | BA17: 2
A18: 증산동 | B18: 821 | C18: 472 | D18: 349 | F18: 354 | G18: 193 | H18: 161 | I18: 72 | J18: 46 | K18: 26 | L18: 141 | M18: 83 | N18: 58 | O18: 5 | Q18: 2 | R18: 3 | S18: 61 | T18: 41 | V18: 20 | W18: 77 | X18: 42 | Y18: 35 | Z18: 16 | AA18: 16 | AB18: 0 | AC18: 31 | AD18: 12 | AE18: 19 | AF18: 36 | AG18: 18 | AH18: 18 | AI18: 2 | AJ18: 1 | AL18: 1 | AM18: 3 | AN18: 3 | AO18: 0 | AP18: 8 | AQ18: 7 | AR18: 1 | AS18: 2 | AT18: 0 | AU18: 2 | AV18: 9 | AW18: 7 | AX18: 2 | AY18: 4 | AZ18: 1 | BA18: 3
A19: 수색동 | B19: 632 | C19: 347 | D19: 285 | F19: 260 | G19: 134 | H19: 126 | I19: 77 | J19: 42 | K19: 35 | L19: 90 | M19: 53 | N19: 37 | O19: 4 | Q19: 3 | R19: 1 | S19: 54 | T19: 35 | V19: 19 | W19: 71 | X19: 36 | Y19: 35 | Z19: 15 | AA19: 12 | AB19: 3 | AC19: 22 | AD19: 13 | AE19: 9 | AF19: 24 | AG19: 14 | AH19: 10 | AI19: 1 | AJ19: 0 | AL19: 1 | AM19: 2 | AN19: 0 | AO19: 2 | AP19: 7 | AQ19: 3 | AR19: 4 | AS19: 1 | AT19: 1 | AU19: 0 | AV19: 4 | AW19: 1 | AX19: 3 | AY19: 0 | AZ19: 0 | BA19: 0
A20: 진관동 | B20: 1955 | C20: 1121 | D20: 834 | F20: 811 | G20: 443 | H20: 368 | I20: 210 | J20: 119 | K20: 91 | L20: 284 | M20: 148 | N20: 136 | O20: 11 | Q20: 10 | R20: 1 | S20: 128 | T20: 79 | V20: 49 | W20: 239 | X20: 144 | Y20: 95 | Z20: 75 | AA20: 64 | AB20: 11 | AC20: 55 | AD20: 27 | AE20: 28 | AF20: 75 | AG20: 47 | AH20: 28 | AI20: 8 | AJ20: 4 | AL20: 4 | AM20: 9 | AN20: 4 | AO20: 5 | AP20: 20 | AQ20: 15 | AR20: 5 | AS20: 2 | AT20: 0 | AU20: 2 | AV20: 23 | AW20: 14 | AX20: 9 | AY20: 5 | AZ20: 3 | BA20: 2

Sheet 정도별
B2: 은평구 동별 장애인현황(정도별)
B3: *2022. 9월말 기준 | K3: (단위 : 명)
B4: 자치구 | C4: 동 | D4: 합계 | G4: 심한 장애 | J4: 심하지 않은 장애
D5: 계 | E5: 남자 | F5: 여자 | G5: 계 | H5: 남자 | I5: 여자 | J5: 계 | K5: 남자 | L5: 여자
B6: 은평구 | C6: 합 계 | D6: =SUM(D7:D22) -> 21750 | E6: =SUM(E7:E22) -> 12689 | F6: 9061 | G6: =SUM(G7:G22) -> 8265 | H6: =SUM(H7:H22) -> 5139 | I6: 3126 | J6: 13485 | K6: 7550 | L6: 5935
C7: 녹번동 | D7: =SUM(E7:F7) -> 1662 | E7: =SUM(H7,K7) -> 948 | F7: =SUM(I7,L7) -> 714 | G7: 565 | H7: 330 | I7: 235 | J7: 1097 | K7: 618 | L7: 479
C8: 불광1동 | D8: =SUM(E8:F8) -> 1698 | E8: =SUM(H8,K8) -> 949 | F8: =SUM(I8,L8) -> 749 | G8: 603 | H8: 347 | I8: 256 | J8: 1095 | K8: 602 | L8: 493
C9: 불광2동 | D9: 1432 | E9: 838 | F9: 594 | G9: 492 | H9: 295 | I9: 197 | J9: 940 | K9: 543 | L9: 397
C10: 갈현1동 | D10: 989 | E10: 580 | F10: 409 | G10: 358 | H10: 207 | I10: 151 | J10: 631 | K10: 373 | L10: 258
C11: 갈현2동 | D11: 1230 | E11: 709 | F11: 521 | G11: 468 | H11: 268 | I11: 200 | J11: 762 | K11: 441 | L11: 321
C12: 구산동 | D12: 2183 | E12: 1504 | F12: 679 | G12: 1234 | H12: 955 | I12: 279 | J12: 949 | K12: 549 | L12: 400
C13: 대조동 | D13: 1242 | E13: 715 | F13: 527 | G13: 427 | H13: 263 | I13: 164 | J13: 815 | K13: 452 | L13: 363
C14: 응암1동 | D14: 1340 | E14: 743 | F14: 597 | G14: 468 | H14: 258 | I14: 210 | J14: 872 | K14: 485 | L14: 387
C15: 응암2동 | D15: 985 | E15: 558 | F15: 427 | G15: 368 | H15: 227 | I15: 141 | J15: 617 | K15: 331 | L15: 286
C16: 응암3동 | D16: 1351 | E16: 778 | F16: 573 | G16: 430 | H16: 271 | I16: 159 | J16: 921 | K16: 507 | L16: 414
C17: 역촌동 | D17: 2117 | E17: 1187 | F17: 930 | G17: 771 | H17: 445 | I17: 326 | J17: 1346 | K17: 742 | L17: 604
C18: 신사1동 | D18: 1231 | E18: 728 | F18: 503 | G18: 450 | H18: 283 | I18: 167 | J18: 781 | K18: 445 | L18: 336
C19: 신사2동 | D19: 882 | E19: 512 | F19: 370 | G19: 323 | H19: 199 | I19: 124 | J19: 559 | K19: 313 | L19: 246
C20: 증산동 | D20: 821 | E20: 472 | F20: 349 | G20: 296 | H20: 182 | I20: 114 | J20: 525 | K20: 290 | L20: 235
C21: 수색동 | D21: 632 | E21: 347 | F21: 285 | G21: 236 | H21: 138 | I21: 98 | J21: 396 | K21: 209 | L21: 187
C22: 진관동 | D22: 1955 | E22: 1121 | F22: 834 | G22: 776 | H22: 471 | I22: 305 | J22: 1179 | K22: 650 | L22: 529

Sheet 연령별
A1: 은평구 장애인 연령구간별(5세 간격), 장애정도별 등록 현황
A2: =정도별!B3 -> *2022. 9월말 기준
J3: (단위: 명)
A4: 구분 | B4: 나이 | C4: 합계 | F4: 심한 장애 | I4: 심하지 않은 장애
C5: 합계 | D5: 남성 | E5: 여성 | F5: 소계 | G5: 남성 | H5: 여성 | I5: 소계 | J5: 남성 | K5: 여성
A6: 합계 | B6: 합계 | C6: =SUM(C7:C28) -> 21750 | D6: =SUM(D7:D28) -> 12689 | E6: 9061 | F6: 8265 | G6: 5139 | H6: 3126 | I6: 13485 | J6: 7550 | K6: 5935
B7: 0~4 | C7: 53 | D7: 27 | E7: 26 | F7: 40 | G7: 20 | H7: 20 | I7: 13 | J7: 7 | K7: 6
B8: 5~9 | C8: 240 | D8: 164 | E8: 76 | F8: 214 | G8: 150 | H8: 64 | I8: 26 | J8: 14 | K8: 12
B9: 10~14 | C9: 270 | D9: 170 | E9: 100 | F9: 242 | G9: 153 | H9: 89 | I9: 28 | J9: 17 | K9: 11
B10: 15~19 | C10: 282 | D10: 178 | E10: 104 | F10: 252 | G10: 161 | H10: 91 | I10: 30 | J10: 17 | K10: 13
B11: 20~24 | C11: 403 | D11: 258 | E11: 145 | F11: 328 | G11: 215 | H11: 113 | I11: 75 | J11: 43 | K11: 32
B12: 25~29 | C12: 499 | D12: 308 | E12: 191 | F12: 380 | G12: 246 | H12: 134 | I12: 119 | J12: 62 | K12: 57
B13: 30~34 | C13: 511 | D13: 343 | E13: 168 | F13: 363 | G13: 239 | H13: 124 | I13: 148 | J13: 104 | K13: 44
B14: 35~39 | C14: 533 | D14: 357 | E14: 176 | F14: 295 | G14: 191 | H14: 104 | I14: 238 | J14: 166 | K14: 72
B15: 40~44 | C15: 729 | D15: 492 | E15: 237 | F15: 375 | G15: 235 | H15: 140 | I15: 354 | J15: 257 | K15: 97
B16: 45~49 | C16: 1037 | D16: 732 | E16: 305 | F16: 522 | G16: 356 | H16: 166 | I16: 515 | J16: 376 | K16: 139
B17: 50~54 | C17: 1465 | D17: 1018 | E17: 447 | F17: 690 | G17: 453 | H17: 237 | I17: 775 | J17: 565 | K17: 210
B18: 55~59 | C18: 1748 | D18: 1179 | E18: 569 | F18: 715 | G18: 464 | H18: 251 | I18: 1033 | J18: 715 | K18: 318
B19: 60~64 | C19: 2384 | D19: 1567 | E19: 817 | F19: 852 | G19: 565 | H19: 287 | I19: 1532 | J19: 1002 | K19: 530
B20: 65~69 | C20: 2429 | D20: 1437 | E20: 992 | F20: 740 | G20: 480 | H20: 260 | I20: 1689 | J20: 957 | K20: 732
B21: 70~74 | C21: 2498 | D21: 1392 | E21: 1106 | F21: 692 | G21: 433 | H21: 259 | I21: 1806 | J21: 959 | K21: 847
B22: 75~79 | C22: 2538 | D22: 1297 | E22: 1241 | F22: 614 | G22: 351 | H22: 263 | I22: 1924 | J22: 946 | K22: 978
B23: 80~84 | C23: 2341 | D23: 1102 | E23: 1239 | F23: 529 | G23: 258 | H23: 271 | I23: 1812 | J23: 844 | K23: 968
B24: 85~89 | C24: 1315 | D24: 513 | E24: 802 | F24: 307 | G24: 129 | H24: 178 | I24: 1008 | J24: 384 | K24: 624
B25: 90~94 | C25: 390 | D25: 129 | E25: 261 | F25: 95 | G25: 32 | H25: 63 | I25: 295 | J25: 97 | K25: 198
B26: 95~99 | C26: 76 | D26: 23 | E26: 53 | F26: 17 | G26: 7 | H26: 10 | I26: 59 | J26: 16 | K26: 43
B27: 100~104 | C27: 8 | D27: 2 | E27: 6 | F27: 3 | G27: 1 | H27: 2 | I27: 5 | J27: 1 | K27: 4
B28: 110~114 | C28: 1 | D28: 1 | E28: 0 | F28: 0 | G28: 0 | H28: 0 | I28: 1 | J28: 1 | K28: 0

Sheet 연령별,유형별
A1: 은평구 등록장애인 연령별, 유형별 현황
B2: =정도별!B3 -> *2022. 9월말 기준
A3: 구분 | B3: 나이 | C3: 합계 | F3: 지체 | I3: 시각 | L3: 청각 | O3: 언어 | R3: 지적 | U3: 뇌병변 | X3: 자폐 | AA3: 정신 | AD3: 신장 | AG3: 심장 | AJ3: 호흡기 | AM3: 간 | AP3: 안면 | AS3: 장루.요루 | AV3: 뇌전증
C4: 합계 | D4: 남성 | E4: 여성 | F4: 소계 | G4: 남성 | H4: 여성 | I4: 소계 | J4: 남성 | K4: 여성 | L4: 소계 | M4: 남성 | N4: 여성 | O4: 소계 | P4: 남성 | Q4: 여성 | R4: 소계 | S4: 남성 | T4: 여성 | U4: 소계 | V4: 남성 | W4: 여성 | X4: 소계 | Y4: 남성 | Z4: 여성 | AA4: 소계 | AB4: 남성 | AC4: 여성 | AD4: 소계 | AE4: 남성 | AF4: 여성 | AG4: 소계 | AH4: 남성 | AI4: 여성 | AJ4: 소계 | AK4: 남성 | AL4: 여성 | AM4: 소계 | AN4: 남성 | AO4: 여성 | AP4: 소계 | AQ4: 남성 | AR4: 여성 | AS4: 소계 | AT4: 남성 | AU4: 여성 | AV4: 소계 | AW4: 남성 | AX4: 여성
A5: 합계 | C5: 21750 | D5: 12689 | E5: 9061 | F5: 8816 | G5: 4838 | H5: 3978 | I5: 2272 | J5: 1358 | K5: 914 | L5: 3367 | M5: 1867 | N5: 1500 | O5: 179 | P5: 132 | Q5: 47 | R5: 1825 | S5: 1198 | T5: 627 | U5: 2226 | V5: 1321 | W5: 905 | X5: 397 | Y5: 335 | Z5: 62 | AA5: 1142 | AB5: 703 | AC5: 439 | AD5: 897 | AE5: 542 | AF5: 355 | AG5: 54 | AH5: 24 | AI5: 30 | AJ5: 127 | AK5: 91 | AL5: 36 | AM5: 165 | AN5: 110 | AO5: 55 | AP5: 22 | AQ5: 11 | AR5: 11 | AS5: 193 | AT5: 123 | AU5: 70 | AV5: 68 | AW5: 36 | AX5: 32
B6: 1 | C6: 1 | D6: 0 | E6: 1 | F6: 0 | G6: 0 | H6: 0 | I6: 0 | J6: 0 | K6: 0 | L6: 0 | M6: 0 | N6: 0 | O6: 0 | P6: 0 | Q6: 0 | R6: 0 | S6: 0 | T6: 0 | U6: 1 | V6: 0 | W6: 1 | X6: 0 | Y6: 0 | Z6: 0 | AA6: 0 | AB6: 0 | AC6: 0 | AD6: 0 | AE6: 0 | AF6: 0 | AG6: 0 | AH6: 0 | AI6: 0 | AJ6: 0 | AK6: 0 | AL6: 0 | AM6: 0 | AN6: 0 | AO6: 0 | AP6: 0 | AQ6: 0 | AR6: 0 | AS6: 0 | AT6: 0 | AU6: 0 | AV6: 0 | AW6: 0 | AX6: 0
A7: 합계 | B7: 2 | C7: 8 | D7: 3 | E7: 5 | F7: 0 | G7: 0 | H7: 0 | I7: 0 | J7: 0 | K7: 0 | L7: 3 | M7: 1 | N7: 2 | O7: 0 | P7: 0 | Q7: 0 | R7: 1 | S7: 1 | T7: 0 | U7: 4 | V7: 1 | W7: 3 | X7: 0 | Y7: 0 | Z7: 0 | AA7: 0 | AB7: 0 | AC7: 0 | AD7: 0 | AE7: 0 | AF7: 0 | AG7: 0 | AH7: 0 | AI7: 0 | AJ7: 0 | AK7: 0 | AL7: 0 | AM7: 0 | AN7: 0 | AO7: 0 | AP7: 0 | AQ7: 0 | AR7: 0 | AS7: 0 | AT7: 0 | AU7: 0 | AV7: 0 | AW7: 0 | AX7: 0
B8: 3 | C8: 22 | D8: 11 | E8: 11 | F8: 1 | G8: 0 | H8: 1 | I8: 1 | J8: 1 | K8: 0 | L8: 4 | M8: 2 | N8: 2 | O8: 0 | P8: 0 | Q8: 0 | R8: 1 | S8: 1 | T8: 0 | U8: 13 | V8: 6 | W8: 7 | X8: 1 | Y8: 1 | Z8: 0 | AA8: 0 | AB8: 0 | AC8: 0 | AD8: 0 | AE8: 0 | AF8: 0 | AG8: 0 | AH8: 0 | AI8: 0 | AJ8: 0 | AK8: 0 | AL8: 0 | AM8: 0 | AN8: 0 | AO8: 0 | AP8: 0 | AQ8: 0 | AR8: 0 | AS8: 1 | AT8: 0 | AU8: 1 | AV8: 0 | AW8: 0 | AX8: 0
B9: 4 | C9: 22 | D9: 13 | E9: 9 | F9: 1 | G9: 0 | H9: 1 | I9: 0 | J9: 0 | K9: 0 | L9: 0 | M9: 0 | N9: 0 | O9: 2 | P9: 2 | Q9: 0 | R9: 4 | S9: 2 | T9: 2 | U9: 8 | V9: 2 | W9: 6 | X9: 7 | Y9: 7 | Z9: 0 | AA9: 0 | AB9: 0 | AC9: 0 | AD9: 0 | AE9: 0 | AF9: 0 | AG9: 0 | AH9: 0 | AI9: 0 | AJ9: 0 | AK9: 0 | AL9: 0 | AM9: 0 | AN9: 0 | AO9: 0 | AP9: 0 | AQ9: 0 | AR9: 0 | AS9: 0 | AT9: 0 | AU9: 0 | AV9: 0 | AW9: 0 | AX9: 0
B10: 5 | C10: 38 | D10: 27 | E10: 11 | F10: 1 | G10: 1 | H10: 0 | I10: 0 | J10: 0 | K10: 0 | L10: 1 | M10: 0 | N10: 1 | O10: 5 | P10: 4 | Q10: 1 | R10: 9 | S10: 8 | T10: 1 | U10: 10 | V10: 5 | W10: 5 | X10: 10 | Y10: 7 | Z10: 3 | AA10: 0 | AB10: 0 | AC10: 0 | AD10: 0 | AE10: 0 | AF10: 0 | AG10: 0 | AH10: 0 | AI10: 0 | AJ10: 0 | AK10: 0 | AL10: 0 | AM10: 0 | AN10: 0 | AO10: 0 | AP10: 0 | AQ10: 0 | AR10: 0 | AS10: 1 | AT10: 1 | AU10: 0 | AV10: 1 | AW10: 1 | AX10: 0
B11: 6 | C11: 52 | D11: 40 | E11: 12 | F11: 0 | G11: 0 | H11: 0 | I11: 1 | J11: 0 | K11: 1 | L11: 2 | M11: 1 | N11: 1 | O11: 8 | P11: 7 | Q11: 1 | R11: 9 | S11: 7 | T11: 2 | U11: 4 | V11: 2 | W11: 2 | X11: 27 | Y11: 23 | Z11: 4 | AA11: 0 | AB11: 0 | AC11: 0 | AD11: 0 | AE11: 0 | AF11: 0 | AG11: 0 | AH11: 0 | AI11: 0 | AJ11: 0 | AK11: 0 | AL11: 0 | AM11: 1 | AN11: 0 | AO11: 1 | AP11: 0 | AQ11: 0 | AR11: 0 | AS11: 0 | AT11: 0 | AU11: 0 | AV11: 0 | AW11: 0 | AX11: 0
B12: 7 | C12: 37 | D12: 27 | E12: 10 | F12: 0 | G12: 0 | H12: 0 | I12: 0 | J12: 0 | K12: 0 | L12: 3 | M12: 1 | N12: 2 | O12: 1 | P12: 0 | Q12: 1 | R12: 12 | S12: 9 | T12: 3 | U12: 2 | V12: 1 | W12: 1 | X12: 18 | Y12: 15 | Z12: 3 | AA12: 0 | AB12: 0 | AC12: 0 | AD12: 0 | AE12: 0 | AF12: 0 | AG12: 0 | AH12: 0 | AI12: 0 | AJ12: 0 | AK12: 0 | AL12: 0 | AM12: 1 | AN12: 1 | AO12: 0 | AP12: 0 | AQ12: 0 | AR12: 0 | AS12: 0 | AT12: 0 | AU12: 0 | AV12: 0 | AW12: 0 | AX12: 0
B13: 8 | C13: 61 | D13: 36 | E13: 25 | F13: 0 | G13: 0 | H13: 0 | I13: 0 | J13: 0 | K13: 0 | L13: 4 | M13: 1 | N13: 3 | O13: 1 | P13: 0 | Q13: 1 | R13: 20 | S13: 10 | T13: 10 | U13: 11 | V13: 7 | W13: 4 | X13: 25 | Y13: 18 | Z13: 7 | AA13: 0 | AB13: 0 | AC13: 0 | AD13: 0 | AE13: 0 | AF13: 0 | AG13: 0 | AH13: 0 | AI13: 0 | AJ13: 0 | AK13: 0 | AL13: 0 | AM13: 0 | AN13: 0 | AO13: 0 | AP13: 0 | AQ13: 0 | AR13: 0 | AS13: 0 | AT13: 0 | AU13: 0 | AV13: 0 | AW13: 0 | AX13: 0
B14: 9 | C14: 52 | D14: 34 | E14: 18 | F14: 0 | G14: 0 | H14: 0 | I14: 1 | J14: 0 | K14: 1 | L14: 2 | M14: 0 | N14: 2 | O14: 0 | P14: 0 | Q14: 0 | R14: 25 | S14: 17 | T14: 8 | U14: 9 | V14: 5 | W14: 4 | X14: 13 | Y14: 10 | Z14: 3 | AA14: 0 | AB14: 0 | AC14: 0 | AD14: 0 | AE14: 0 | AF14: 0 | AG14: 1 | AH14: 1 | AI14: 0 | AJ14: 0 | AK14: 0 | AL14: 0 | AM14: 1 | AN14: 1 | AO14: 0 | AP14: 0 | AQ14: 0 | AR14: 0 | AS14: 0 | AT14: 0 | AU14: 0 | AV14: 0 | AW14: 0 | AX14: 0
B15: 10 | C15: 60 | D15: 33 | E15: 27 | F15: 0 | G15: 0 | H15: 0 | I15: 2 | J15: 2 | K15: 0 | L15: 1 | M15: 0 | N15: 1 | O15: 1 | P15: 1 | Q15: 0 | R15: 24 | S15: 9 | T15: 15 | U15: 11 | V15: 3 | W15: 8 | X15: 21 | Y15: 18 | Z15: 3 | AA15: 0 | AB15: 0 | AC15: 0 | AD15: 0 | AE15: 0 | AF15: 0 | AG15: 0 | AH15: 0 | AI15: 0 | AJ15: 0 | AK15: 0 | AL15: 0 | AM15: 0 | AN15: 0 | AO15: 0 | AP15: 0 | AQ15: 0 | AR15: 0 | AS15: 0 | AT15: 0 | AU15: 0 | AV15: 0 | AW15: 0 | AX15: 0
B16: 11 | C16: 61 | D16: 40 | E16: 21 | F16: 4 | G16: 2 | H16: 2 | I16: 3 | J16: 1 | K16: 2 | L16: 3 | M16: 1 | N16: 2 | O16: 0 | P16: 0 | Q16: 0 | R16: 23 | S16: 14 | T16: 9 | U16: 6 | V16: 4 | W16: 2 | X16: 22 | Y16: 18 | Z16: 4 | AA16: 0 | AB16: 0 | AC16: 0 | AD16: 0 | AE16: 0 | AF16: 0 | AG16: 0 | AH16: 0 | AI16: 0 | AJ16: 0 | AK16: 0 | AL16: 0 | AM16: 0 | AN16: 0 | AO16: 0 | AP16: 0 | AQ16: 0 | AR16: 0 | AS16: 0 | AT16: 0 | AU16: 0 | AV16: 0 | AW16: 0 | AX16: 0
B17: 12 | C17: 53 | D17: 36 | E17: 17 | F17: 1 | G17: 1 | H17: 0 | I17: 0 | J17: 0 | K17: 0 | L17: 1 | M17: 0 | N17: 1 | O17: 1 | P17: 1 | Q17: 0 | R17: 22 | S17: 12 | T17: 10 | U17: 7 | V17: 5 | W17: 2 | X17: 21 | Y17: 17 | Z17: 4 | AA17: 0 | AB17: 0 | AC17: 0 | AD17: 0 | AE17: 0 | AF17: 0 | AG17: 0 | AH17: 0 | AI17: 0 | AJ17: 0 | AK17: 0 | AL17: 0 | AM17: 0 | AN17: 0 | AO17: 0 | AP17: 0 | AQ17: 0 | AR17: 0 | AS17: 0 | AT17: 0 | AU17: 0 | AV17: 0 | AW17: 0 | AX17: 0
B18: 13 | C18: 49 | D18: 28 | E18: 21 | F18: 1 | G18: 1 | H18: 0 | I18: 2 | J18: 0 | K18: 2 | L18: 1 | M18: 1 | N18: 0 | O18: 1 | P18: 0 | Q18: 1 | R18: 16 | S18: 5 | T18: 11 | U18: 7 | V18: 4 | W18: 3 | X18: 18 | Y18: 15 | Z18: 3 | AA18: 0 | AB18: 0 | AC18: 0 | AD18: 0 | AE18: 0 | AF18: 0 | AG18: 1 | AH18: 1 | AI18: 0 | AJ18: 0 | AK18: 0 | AL18: 0 | AM18: 1 | AN18: 1 | AO18: 0 | AP18: 0 | AQ18: 0 | AR18: 0 | AS18: 1 | AT18: 0 | AU18: 1 | AV18: 0 | AW18: 0 | AX18: 0
B19: 14 | C19: 47 | D19: 33 | E19: 14 | F19: 0 | G19: 0 | H19: 0 | I19: 2 | J19: 0 | K19: 2 | L19: 1 | M19: 0 | N19: 1 | O19: 1 | P19: 1 | Q19: 0 | R19: 28 | S19: 23 | T19: 5 | U19: 7 | V19: 3 | W19: 4 | X19: 8 | Y19: 6 | Z19: 2 | AA19: 0 | AB19: 0 | AC19: 0 | AD19: 0 | AE19: 0 | AF19: 0 | AG19: 0 | AH19: 0 | AI19: 0 | AJ19: 0 | AK19: 0 | AL19: 0 | AM19: 0 | AN19: 0 | AO19: 0 | AP19: 0 | AQ19: 0 | AR19: 0 | AS19: 0 | AT19: 0 | AU19: 0 | AV19: 0 | AW19: 0 | AX19: 0
B20: 15 | C20: 57 | D20: 38 | E20: 19 | F20: 2 | G20: 0 | H20: 2 | I20: 0 | J20: 0 | K20: 0 | L20: 2 | M20: 2 | N20: 0 | O20: 0 | P20: 0 | Q20: 0 | R20: 33 | S20: 20 | T20: 13 | U20: 9 | V20: 6 | W20: 3 | X20: 10 | Y20: 9 | Z20: 1 | AA20: 0 | AB20: 0 | AC20: 0 | AD20: 0 | AE20: 0 | AF20: 0 | AG20: 0 | AH20: 0 | AI20: 0 | AJ20: 0 | AK20: 0 | AL20: 0 | AM20: 1 | AN20: 1 | AO20: 0 | AP20: 0 | AQ20: 0 | AR20: 0 | AS20: 0 | AT20: 0 | AU20: 0 | AV20: 0 | AW20: 0 | AX20: 0
B21: 16 | C21: 38 | D21: 26 | E21: 12 | F21: 3 | G21: 2 | H21: 1 | I21: 1 | J21: 1 | K21: 0 | L21: 0 | M21: 0 | N21: 0 | O21: 0 | P21: 0 | Q21: 0 | R21: 26 | S21: 19 | T21: 7 | U21: 4 | V21: 1 | W21: 3 | X21: 4 | Y21: 3 | Z21: 1 | AA21: 0 | AB21: 0 | AC21: 0 | AD21: 0 | AE21: 0 | AF21: 0 | AG21: 0 | AH21: 0 | AI21: 0 | AJ21: 0 | AK21: 0 | AL21: 0 | AM21: 0 | AN21: 0 | AO21: 0 | AP21: 0 | AQ21: 0 | AR21: 0 | AS21: 0 | AT21: 0 | AU21: 0 | AV21: 0 | AW21: 0 | AX21: 0
B22: 17 | C22: 48 | D22: 30 | E22: 18 | F22: 3 | G22: 0 | H22: 3 | I22: 1 | J22: 1 | K22: 0 | L22: 2 | M22: 1 | N22: 1 | O22: 0 | P22: 0 | Q22: 0 | R22: 31 | S22: 20 | T22: 11 | U22: 3 | V22: 1 | W22: 2 | X22: 7 | Y22: 6 | Z22: 1 | AA22: 0 | AB22: 0 | AC22: 0 | AD22: 0 | AE22: 0 | AF22: 0 | AG22: 0 | AH22: 0 | AI22: 0 | AJ22: 0 | AK22: 0 | AL22: 0 | AM22: 0 | AN22: 0 | AO22: 0 | AP22: 0 | AQ22: 0 | AR22: 0 | AS22: 0 | AT22: 0 | AU22: 0 | AV22: 1 | AW22: 1 | AX22: 0
B23: 18 | C23: 66 | D23: 42 | E23: 24 | F23: 3 | G23: 2 | H23: 1 | I23: 2 | J23: 0 | K23: 2 | L23: 2 | M23: 0 | N23: 2 | O23: 0 | P23: 0 | Q23: 0 | R23: 39 | S23: 23 | T23: 16 | U23: 7 | V23: 6 | W23: 1 | X23: 12 | Y23: 11 | Z23: 1 | AA23: 0 | AB23: 0 | AC23: 0 | AD23: 1 | AE23: 0 | AF23: 1 | AG23: 0 | AH23: 0 | AI23: 0 | AJ23: 0 | AK23: 0 | AL23: 0 | AM23: 0 | AN23: 0 | AO23: 0 | AP23: 0 | AQ23: 0 | AR23: 0 | AS23: 0 | AT23: 0 | AU23: 0 | AV23: 0 | AW23: 0 | AX23: 0
B24: 19 | C24: 73 | D24: 42 | E24: 31 | F24: 5 | G24: 5 | H24: 0 | I24: 0 | J24: 0 | K24: 0 | L24: 3 | M24: 2 | N24: 1 | O24: 2 | P24: 2 | Q24: 0 | R24: 48 | S24: 23 | T24: 25 | U24: 7 | V24: 4 | W24: 3 | X24: 6 | Y24: 5 | Z24: 1 | AA24: 0 | AB24: 0 | AC24: 0 | AD24: 0 | AE24: 0 | AF24: 0 | AG24: 0 | AH24: 0 | AI24: 0 | AJ24: 0 | AK24: 0 | AL24: 0 | AM24: 2 | AN24: 1 | AO24: 1 | AP24: 0 | AQ24: 0 | AR24: 0 | AS24: 0 | AT24: 0 | AU24: 0 | AV24: 0 | AW24: 0 | AX24: 0
B25: 20 | C25: 69 | D25: 43 | E25: 26 | F25: 6 | G25: 2 | H25: 4 | I25: 3 | J25: 3 | K25: 0 | L25: 5 | M25: 1 | N25: 4 | O25: 0 | P25: 0 | Q25: 0 | R25: 37 | S25: 26 | T25: 11 | U25: 6 | V25: 1 | W25: 5 | X25: 6 | Y25: 5 | Z25: 1 | AA25: 1 | AB25: 1 | AC25: 0 | AD25: 0 | AE25: 0 | AF25: 0 | AG25: 3 | AH25: 3 | AI25: 0 | AJ25: 0 | AK25: 0 | AL25: 0 | AM25: 1 | AN25: 0 | AO25: 1 | AP25: 0 | AQ25: 0 | AR25: 0 | AS25: 1 | AT25: 1 | AU25: 0 | AV25: 0 | AW25: 0 | AX25: 0
B26: 21 | C26: 72 | D26: 43 | E26: 29 | F26: 7 | G26: 3 | H26: 4 | I26: 5 | J26: 1 | K26: 4 | L26: 3 | M26: 3 | N26: 0 | O26: 0 | P26: 0 | Q26: 0 | R26: 46 | S26: 28 | T26: 18 | U26: 0 | V26: 0 | W26: 0 | X26: 9 | Y26: 8 | Z26: 1 | AA26: 0 | AB26: 0 | AC26: 0 | AD26: 1 | AE26: 0 | AF26: 1 | AG26: 0 | AH26: 0 | AI26: 0 | AJ26: 0 | AK26: 0 | AL26: 0 | AM26: 1 | AN26: 0 | AO26: 1 | AP26: 0 | AQ26: 0 | AR26: 0 | AS26: 0 | AT26: 0 | AU26: 0 | AV26: 0 | AW26: 0 | AX26: 0
B27: 22 | C27: 91 | D27: 60 | E27: 31 | F27: 5 | G27: 2 | H27: 3 | I27: 5 | J27: 3 | K27: 2 | L27: 7 | M27: 3 | N27: 4 | O27: 0 | P27: 0 | Q27: 0 | R27: 43 | S27: 31 | T27: 12 | U27: 8 | V27: 7 | W27: 1 | X27: 16 | Y27: 13 | Z27: 3 | AA27: 2 | AB27: 1 | AC27: 1 | AD27: 0 | AE27: 0 | AF27: 0 | AG27: 3 | AH27: 0 | AI27: 3 | AJ27: 0 | AK27: 0 | AL27: 0 | AM27: 1 | AN27: 0 | AO27: 1 | AP27: 0 | AQ27: 0 | AR27: 0 | AS27: 0 | AT27: 0 | AU27: 0 | AV27: 1 | AW27: 0 | AX27: 1
B28: 23 | C28: 85 | D28: 59 | E28: 26 | F28: 6 | G28: 2 | H28: 4 | I28: 7 | J28: 4 | K28: 3 | L28: 5 | M28: 3 | N28: 2 | O28: 0 | P28: 0 | Q28: 0 | R28: 33 | S28: 22 | T28: 11 | U28: 9 | V28: 6 | W28: 3 | X28: 19 | Y28: 17 | Z28: 2 | AA28: 1 | AB28: 1 | AC28: 0 | AD28: 0 | AE28: 0 | AF28: 0 | AG28: 1 | AH28: 1 | AI28: 0 | AJ28: 0 | AK28: 0 | AL28: 0 | AM28: 3 | AN28: 2 | AO28: 1 | AP28: 0 | AQ28: 0 | AR28: 0 | AS28: 0 | AT28: 0 | AU28: 0 | AV28: 1 | AW28: 1 | AX28: 0
B29: 24 | C29: 86 | D29: 53 | E29: 33 | F29: 8 | G29: 5 | H29: 3 | I29: 7 | J29: 4 | K29: 3 | L29: 6 | M29: 1 | N29: 5 | O29: 1 | P29: 1 | Q29: 0 | R29: 47 | S29: 30 | T29: 17 | U29: 3 | V29: 2 | W29: 1 | X29: 11 | Y29: 9 | Z29: 2 | AA29: 2 | AB29: 0 | AC29: 2 | AD29: 0 | AE29: 0 | AF29: 0 | AG29: 0 | AH29: 0 | AI29: 0 | AJ29: 0 | AK29: 0 | AL29: 0 | AM29: 0 | AN29: 0 | AO29: 0 | AP29: 0 | AQ29: 0 | AR29: 0 | AS29: 0 | AT29: 0 | AU29: 0 | AV29: 1 | AW29: 1 | AX29: 0
B30: 25 | C30: 89 | D30: 52 | E30: 37 | F30: 12 | G30: 6 | H30: 6 | I30: 7 | J30: 3 | K30: 4 | L30: 5 | M30: 3 | N30: 2 | O30: 1 | P30: 1 | Q30: 0 | R30: 44 | S30: 25 | T30: 19 | U30: 5 | V30: 3 | W30: 2 | X30: 9 | Y30: 9 | Z30: 0 | AA30: 4 | AB30: 1 | AC30: 3 | AD30: 1 | AE30: 1 | AF30: 0 | AG30: 0 | AH30: 0 | AI30: 0 | AJ30: 0 | AK30: 0 | AL30: 0 | AM30: 1 | AN30: 0 | AO30: 1 | AP30: 0 | AQ30: 0 | AR30: 0 | AS30: 0 | AT30: 0 | AU30: 0 | AV30: 0 | AW30: 0 | AX30: 0
B31: 26 | C31: 103 | D31: 64 | E31: 39 | F31: 15 | G31: 6 | H31: 9 | I31: 9 | J31: 8 | K31: 1 | L31: 7 | M31: 3 | N31: 4 | O31: 0 | P31: 0 | Q31: 0 | R31: 49 | S31: 31 | T31: 18 | U31: 5 | V31: 2 | W31: 3 | X31: 14 | Y31: 10 | Z31: 4 | AA31: 3 | AB31: 3 | AC31: 0 | AD31: 1 | AE31: 1 | AF31: 0 | AG31: 0 | AH31: 0 | AI31: 0 | AJ31: 0 | AK31: 0 | AL31: 0 | AM31: 0 | AN31: 0 | AO31: 0 | AP31: 0 | AQ31: 0 | AR31: 0 | AS31: 0 | AT31: 0 | AU31: 0 | AV31: 0 | AW31: 0 | AX31: 0
B32: 27 | C32: 96 | D32: 69 | E32: 27 | F32: 14 | G32: 10 | H32: 4 | I32: 10 | J32: 10 | K32: 0 | L32: 5 | M32: 3 | N32: 2 | O32: 0 | P32: 0 | Q32: 0 | R32: 45 | S32: 32 | T32: 13 | U32: 8 | V32: 5 | W32: 3 | X32: 8 | Y32: 7 | Z32: 1 | AA32: 2 | AB32: 1 | AC32: 1 | AD32: 2 | AE32: 1 | AF32: 1 | AG32: 0 | AH32: 0 | AI32: 0 | AJ32: 0 | AK32: 0 | AL32: 0 | AM32: 1 | AN32: 0 | AO32: 1 | AP32: 0 | AQ32: 0 | AR32: 0 | AS32: 0 | AT32: 0 | AU32: 0 | AV32: 1 | AW32: 0 | AX32: 1
B33: 28 | C33: 117 | D33: 71 | E33: 46 | F33: 18 | G33: 9 | H33: 9 | I33: 11 | J33: 7 | K33: 4 | L33: 7 | M33: 1 | N33: 6 | O33: 0 | P33: 0 | Q33: 0 | R33: 49 | S33: 28 | T33: 21 | U33: 10 | V33: 6 | W33: 4 | X33: 13 | Y33: 13 | Z33: 0 | AA33: 3 | AB33: 3 | AC33: 0 | AD33: 3 | AE33: 2 | AF33: 1 | AG33: 1 | AH33: 0 | AI33: 1 | AJ33: 0 | AK33: 0 | AL33: 0 | AM33: 1 | AN33: 1 | AO33: 0 | AP33: 0 | AQ33: 0 | AR33: 0 | AS33: 0 | AT33: 0 | AU33: 0 | AV33: 1 | AW33: 1 | AX33: 0
B34: 29 | C34: 94 | D34: 52 | E34: 42 | F34: 17 | G34: 6 | H34: 11 | I34: 7 | J34: 3 | K34: 4 | L34: 4 | M34: 2 | N34: 2 | O34: 1 | P34: 0 | Q34: 1 | R34: 49 | S34: 31 | T34: 18 | U34: 5 | V34: 4 | W34: 1 | X34: 5 | Y34: 4 | Z34: 1 | AA34: 4 | AB34: 1 | AC34: 3 | AD34: 1 | AE34: 1 | AF34: 0 | AG34: 1 | AH34: 0 | AI34: 1 | AJ34: 0 | AK34: 0 | AL34: 0 | AM34: 0 | AN34: 0 | AO34: 0 | AP34: 0 | AQ34: 0 | AR34: 0 | AS34: 0 | AT34: 0 | AU34: 0 | AV34: 0 | AW34: 0 | AX34: 0
B35: 30 | C35: 125 | D35: 80 | E35: 45 | F35: 20 | G35: 12 | H35: 8 | I35: 13 | J35: 11 | K35: 2 | L35: 4 | M35: 1 | N35: 3 | O35: 2 | P35: 1 | Q35: 1 | R35: 57 | S35: 38 | T35: 19 | U35: 8 | V35: 3 | W35: 5 | X35: 9 | Y35: 8 | Z35: 1 | AA35: 7 | AB35: 5 | AC35: 2 | AD35: 2 | AE35: 1 | AF35: 1 | AG35: 2 | AH35: 0 | AI35: 2 | AJ35: 0 | AK35: 0 | AL35: 0 | AM35: 0 | AN35: 0 | AO35: 0 | AP35: 0 | AQ35: 0 | AR35: 0 | AS35: 1 | AT35: 0 | AU35: 1 | AV35: 0 | AW35: 0 | AX35: 0
B36: 31 | C36: 107 | D36: 73 | E36: 34 | F36: 17 | G36: 12 | H36: 5 | I36: 7 | J36: 6 | K36: 1 | L36: 8 | M36: 4 | N36: 4 | O36: 0 | P36: 0 | Q36: 0 | R36: 42 | S36: 28 | T36: 14 | U36: 8 | V36: 6 | W36: 2 | X36: 8 | Y36: 7 | Z36: 1 | AA36: 7 | AB36: 6 | AC36: 1 | AD36: 8 | AE36: 4 | AF36: 4 | AG36: 2 | AH36: 0 | AI36: 2 | AJ36: 0 | AK36: 0 | AL36: 0 | AM36: 0 | AN36: 0 | AO36: 0 | AP36: 0 | AQ36: 0 | AR36: 0 | AS36: 0 | AT36: 0 | AU36: 0 | AV36: 0 | AW36: 0 | AX36: 0
B37: 32 | C37: 91 | D37: 66 | E37: 25 | F37: 15 | G37: 12 | H37: 3 | I37: 16 | J37: 13 | K37: 3 | L37: 5 | M37: 3 | N37: 2 | O37: 0 | P37: 0 | Q37: 0 | R37: 31 | S37: 20 | T37: 11 | U37: 5 | V37: 2 | W37: 3 | X37: 8 | Y37: 8 | Z37: 0 | AA37: 8 | AB37: 5 | AC37: 3 | AD37: 1 | AE37: 1 | AF37: 0 | AG37: 0 | AH37: 0 | AI37: 0 | AJ37: 0 | AK37: 0 | AL37: 0 | AM37: 0 | AN37: 0 | AO37: 0 | AP37: 0 | AQ37: 0 | AR37: 0 | AS37: 1 | AT37: 1 | AU37: 0 | AV37: 1 | AW37: 1 | AX37: 0
B38: 33 | C38: 90 | D38: 59 | E38: 31 | F38: 21 | G38: 16 | H38: 5 | I38: 13 | J38: 9 | K38: 4 | L38: 6 | M38: 2 | N38: 4 | O38: 1 | P38: 0 | Q38: 1 | R38: 32 | S38: 23 | T38: 9 | U38: 5 | V38: 3 | W38: 2 | X38: 3 | Y38: 1 | Z38: 2 | AA38: 8 | AB38: 4 | AC38: 4 | AD38: 0 | AE38: 0 | AF38: 0 | AG38: 0 | AH38: 0 | AI38: 0 | AJ38: 0 | AK38: 0 | AL38: 0 | AM38: 1 | AN38: 1 | AO38: 0 | AP38: 0 | AQ38: 0 | AR38: 0 | AS38: 0 | AT38: 0 | AU38: 0 | AV38: 0 | AW38: 0 | AX38: 0
B39: 34 | C39: 98 | D39: 65 | E39: 33 | F39: 23 | G39: 17 | H39: 6 | I39: 11 | J39: 5 | K39: 6 | L39: 3 | M39: 2 | N39: 1 | O39: 0 | P39: 0 | Q39: 0 | R39: 37 | S39: 27 | T39: 10 | U39: 7 | V39: 5 | W39: 2 | X39: 6 | Y39: 6 | Z39: 0 | AA39: 6 | AB39: 2 | AC39: 4 | AD39: 3 | AE39: 1 | AF39: 2 | AG39: 1 | AH39: 0 | AI39: 1 | AJ39: 0 | AK39: 0 | AL39: 0 | AM39: 0 | AN39: 0 | AO39: 0 | AP39: 0 | AQ39: 0 | AR39: 0 | AS39: 0 | AT39: 0 | AU39: 0 | AV39: 1 | AW39: 0 | AX39: 1
B40: 35 | C40: 96 | D40: 64 | E40: 32 | F40: 20 | G40: 12 | H40: 8 | I40: 12 | J40: 9 | K40: 3 | L40: 3 | M40: 1 | N40: 2 | O40: 0 | P40: 0 | Q40: 0 | R40: 29 | S40: 19 | T40: 10 | U40: 10 | V40: 8 | W40: 2 | X40: 7 | Y40: 7 | Z40: 0 | AA40: 8 | AB40: 6 | AC40: 2 | AD40: 4 | AE40: 1 | AF40: 3 | AG40: 1 | AH40: 0 | AI40: 1 | AJ40: 0 | AK40: 0 | AL40: 0 | AM40: 0 | AN40: 0 | AO40: 0 | AP40: 0 | AQ40: 0 | AR40: 0 | AS40: 2 | AT40: 1 | AU40: 1 | AV40: 0 | AW40: 0 | AX40: 0
B41: 36 | C41: 112 | D41: 69 | E41: 43 | F41: 30 | G41: 18 | H41: 12 | I41: 19 | J41: 10 | K41: 9 | L41: 5 | M41: 4 | N41: 1 | O41: 1 | P41: 1 | Q41: 0 | R41: 31 | S41: 20 | T41: 11 | U41: 5 | V41: 5 | W41: 0 | X41: 3 | Y41: 3 | Z41: 0 | AA41: 11 | AB41: 6 | AC41: 5 | AD41: 1 | AE41: 1 | AF41: 0 | AG41: 1 | AH41: 0 | AI41: 1 | AJ41: 1 | AK41: 0 | AL41: 1 | AM41: 1 | AN41: 0 | AO41: 1 | AP41: 1 | AQ41: 1 | AR41: 0 | AS41: 1 | AT41: 0 | AU41: 1 | AV41: 1 | AW41: 0 | AX41: 1
B42: 37 | C42: 96 | D42: 65 | E42: 31 | F42: 26 | G42: 16 | H42: 10 | I42: 17 | J42: 12 | K42: 5 | L42: 2 | M42: 2 | N42: 0 | O42: 0 | P42: 0 | Q42: 0 | R42: 20 | S42: 13 | T42: 7 | U42: 6 | V42: 4 | W42: 2 | X42: 5 | Y42: 4 | Z42: 1 | AA42: 10 | AB42: 7 | AC42: 3 | AD42: 6 | AE42: 4 | AF42: 2 | AG42: 0 | AH42: 0 | AI42: 0 | AJ42: 0 | AK42: 0 | AL42: 0 | AM42: 1 | AN42: 1 | AO42: 0 | AP42: 0 | AQ42: 0 | AR42: 0 | AS42: 1 | AT42: 1 | AU42: 0 | AV42: 2 | AW42: 1 | AX42: 1
B43: 38 | C43: 104 | D43: 63 | E43: 41 | F43: 34 | G43: 27 | H43: 7 | I43: 7 | J43: 1 | K43: 6 | L43: 3 | M43: 0 | N43: 3 | O43: 1 | P43: 0 | Q43: 1 | R43: 26 | S43: 17 | T43: 9 | U43: 13 | V43: 9 | W43: 4 | X43: 0 | Y43: 0 | Z43: 0 | AA43: 12 | AB43: 6 | AC43: 6 | AD43: 6 | AE43: 2 | AF43: 4 | AG43: 0 | AH43: 0 | AI43: 0 | AJ43: 0 | AK43: 0 | AL43: 0 | AM43: 0 | AN43: 0 | AO43: 0 | AP43: 0 | AQ43: 0 | AR43: 0 | AS43: 1 | AT43: 1 | AU43: 0 | AV43: 1 | AW43: 0 | AX43: 1
B44: 39 | C44: 125 | D44: 96 | E44: 29 | F44: 47 | G44: 41 | H44: 6 | I44: 20 | J44: 18 | K44: 2 | L44: 2 | M44: 2 | N44: 0 | O44: 1 | P44: 0 | Q44: 1 | R44: 25 | S44: 15 | T44: 10 | U44: 11 | V44: 6 | W44: 5 | X44: 0 | Y44: 0 | Z44: 0 | AA44: 14 | AB44: 10 | AC44: 4 | AD44: 1 | AE44: 0 | AF44: 1 | AG44: 1 | AH44: 1 | AI44: 0 | AJ44: 1 | AK44: 1 | AL44: 0 | AM44: 0 | AN44: 0 | AO44: 0 | AP44: 0 | AQ44: 0 | AR44: 0 | AS44: 0 | AT44: 0 | AU44: 0 | AV44: 2 | AW44: 2 | AX44: 0
B45: 40 | C45: 135 | D45: 87 | E45: 48 | F45: 43 | G45: 35 | H45: 8 | I45: 15 | J45: 12 | K45: 3 | L45: 5 | M45: 1 | N45: 4 | O45: 2 | P45: 1 | Q45: 1 | R45: 33 | S45: 18 | T45: 15 | U45: 11 | V45: 6 | W45: 5 | X45: 1 | Y45: 1 | Z45: 0 | AA45: 16 | AB45: 9 | AC45: 7 | AD45: 6 | AE45: 3 | AF45: 3 | AG45: 0 | AH45: 0 | AI45: 0 | AJ45: 0 | AK45: 0 | AL45: 0 | AM45: 1 | AN45: 0 | AO45: 1 | AP45: 0 | AQ45: 0 | AR45: 0 | AS45: 0 | AT45: 0 | AU45: 0 | AV45: 2 | AW45: 1 | AX45: 1
B46: 41 | C46: 147 | D46: 105 | E46: 42 | F46: 44 | G46: 37 | H46: 7 | I46: 20 | J46: 16 | K46: 4 | L46: 7 | M46: 4 | N46: 3 | O46: 1 | P46: 0 | Q46: 1 | R46: 39 | S46: 30 | T46: 9 | U46: 12 | V46: 7 | W46: 5 | X46: 2 | Y46: 1 | Z46: 1 | AA46: 11 | AB46: 4 | AC46: 7 | AD46: 8 | AE46: 6 | AF46: 2 | AG46: 0 | AH46: 0 | AI46: 0 | AJ46: 0 | AK46: 0 | AL46: 0 | AM46: 0 | AN46: 0 | AO46: 0 | AP46: 0 | AQ46: 0 | AR46: 0 | AS46: 1 | AT46: 0 | AU46: 1 | AV46: 2 | AW46: 0 | AX46: 2
B47: 42 | C47: 148 | D47: 97 | E47: 51 | F47: 55 | G47: 36 | H47: 19 | I47: 16 | J47: 13 | K47: 3 | L47: 11 | M47: 5 | N47: 6 | O47: 0 | P47: 0 | Q47: 0 | R47: 28 | S47: 19 | T47: 9 | U47: 14 | V47: 8 | W47: 6 | X47: 1 | Y47: 1 | Z47: 0 | AA47: 17 | AB47: 12 | AC47: 5 | AD47: 3 | AE47: 1 | AF47: 2 | AG47: 0 | AH47: 0 | AI47: 0 | AJ47: 1 | AK47: 0 | AL47: 1 | AM47: 0 | AN47: 0 | AO47: 0 | AP47: 0 | AQ47: 0 | AR47: 0 | AS47: 0 | AT47: 0 | AU47: 0 | AV47: 2 | AW47: 2 | AX47: 0
B48: 43 | C48: 142 | D48: 93 | E48: 49 | F48: 64 | G48: 51 | H48: 13 | I48: 11 | J48: 5 | K48: 6 | L48: 8 | M48: 3 | N48: 5 | O48: 0 | P48: 0 | Q48: 0 | R48: 21 | S48: 10 | T48: 11 | U48: 11 | V48: 10 | W48: 1 | X48: 0 | Y48: 0 | Z48: 0 | AA48: 15 | AB48: 8 | AC48: 7 | AD48: 7 | AE48: 4 | AF48: 3 | AG48: 1 | AH48: 1 | AI48: 0 | AJ48: 0 | AK48: 0 | AL48: 0 | AM48: 2 | AN48: 1 | AO48: 1 | AP48: 0 | AQ48: 0 | AR48: 0 | AS48: 1 | AT48: 0 | AU48: 1 | AV48: 1 | AW48: 0 | AX48: 1
B49: 44 | C49: 157 | D49: 110 | E49: 47 | F49: 64 | G49: 49 | H49: 15 | I49: 20 | J49: 15 | K49: 5 | L49: 9 | M49: 5 | N49: 4 | O49: 0 | P49: 0 | Q49: 0 | R49: 27 | S49: 18 | T49: 9 | U49: 12 | V49: 7 | W49: 5 | X49: 0 | Y49: 0 | Z49: 0 | AA49: 17 | AB49: 11 | AC49: 6 | AD49: 7 | AE49: 4 | AF49: 3 | AG49: 1 | AH49: 1 | AI49: 0 | AJ49: 0 | AK49: 0 | AL49: 0 | AM49: 0 | AN49: 0 | AO49: 0 | AP49: 0 | AQ49: 0 | AR49: 0 | AS49: 0 | AT49: 0 | AU49: 0 | AV49: 0 | AW49: 0 | AX49: 0
B50: 45 | C50: 161 | D50: 112 | E50: 49 | F50: 50 | G50: 40 | H50: 10 | I50: 19 | J50: 8 | K50: 11 | L50: 7 | M50: 2 | N50: 5 | O50: 2 | P50: 2 | Q50: 0 | R50: 34 | S50: 22 | T50: 12 | U50: 14 | V50: 12 | W50: 2 | X50: 0 | Y50: 0 | Z50: 0 | AA50: 22 | AB50: 16 | AC50: 6 | AD50: 9 | AE50: 7 | AF50: 2 | AG50: 0 | AH50: 0 | AI50: 0 | AJ50: 0 | AK50: 0 | AL50: 0 | AM50: 1 | AN50: 1 | AO50: 0 | AP50: 2 | AQ50: 1 | AR50: 1 | AS50: 0 | AT50: 0 | AU50: 0 | AV50: 1 | AW50: 1 | AX50: 0
B51: 46 | C51: 196 | D51: 147 | E51: 49 | F51: 79 | G51: 65 | H51: 14 | I51: 27 | J51: 16 | K51: 11 | L51: 9 | M51: 4 | N51: 5 | O51: 0 | P51: 0 | Q51: 0 | R51: 38 | S51: 31 | T51: 7 | U51: 8 | V51: 5 | W51: 3 | X51: 1 | Y51: 1 | Z51: 0 | AA51: 23 | AB51: 18 | AC51: 5 | AD51: 5 | AE51: 3 | AF51: 2 | AG51: 0 | AH51: 0 | AI51: 0 | AJ51: 2 | AK51: 2 | AL51: 0 | AM51: 2 | AN51: 1 | AO51: 1 | AP51: 1 | AQ51: 1 | AR51: 0 | AS51: 0 | AT51: 0 | AU51: 0 | AV51: 1 | AW51: 0 | AX51: 1
B52: 47 | C52: 210 | D52: 142 | E52: 68 | F52: 75 | G52: 61 | H52: 14 | I52: 24 | J52: 19 | K52: 5 | L52: 10 | M52: 4 | N52: 6 | O52: 2 | P52: 1 | Q52: 1 | R52: 33 | S52: 18 | T52: 15 | U52: 18 | V52: 8 | W52: 10 | X52: 2 | Y52: 2 | Z52: 0 | AA52: 32 | AB52: 17 | AC52: 15 | AD52: 13 | AE52: 11 | AF52: 2 | AG52: 1 | AH52: 1 | AI52: 0 | AJ52: 0 | AK52: 0 | AL52: 0 | AM52: 0 | AN52: 0 | AO52: 0 | AP52: 0 | AQ52: 0 | AR52: 0 | AS52: 0 | AT52: 0 | AU52: 0 | AV52: 0 | AW52: 0 | AX52: 0
B53: 48 | C53: 210 | D53: 145 | E53: 65 | F53: 81 | G53: 58 | H53: 23 | I53: 22 | J53: 17 | K53: 5 | L53: 8 | M53: 2 | N53: 6 | O53: 3 | P53: 2 | Q53: 1 | R53: 29 | S53: 21 | T53: 8 | U53: 23 | V53: 15 | W53: 8 | X53: 0 | Y53: 0 | Z53: 0 | AA53: 27 | AB53: 19 | AC53: 8 | AD53: 9 | AE53: 7 | AF53: 2 | AG53: 0 | AH53: 0 | AI53: 0 | AJ53: 1 | AK53: 1 | AL53: 0 | AM53: 3 | AN53: 3 | AO53: 0 | AP53: 1 | AQ53: 0 | AR53: 1 | AS53: 0 | AT53: 0 | AU53: 0 | AV53: 3 | AW53: 0 | AX53: 3
B54: 49 | C54: 260 | D54: 186 | E54: 74 | F54: 81 | G54: 65 | H54: 16 | I54: 42 | J54: 29 | K54: 13 | L54: 10 | M54: 5 | N54: 5 | O54: 6 | P54: 5 | Q54: 1 | R54: 31 | S54: 26 | T54: 5 | U54: 28 | V54: 18 | W54: 10 | X54: 0 | Y54: 0 | Z54: 0 | AA54: 39 | AB54: 23 | AC54: 16 | AD54: 10 | AE54: 8 | AF54: 2 | AG54: 2 | AH54: 1 | AI54: 1 | AJ54: 0 | AK54: 0 | AL54: 0 | AM54: 4 | AN54: 3 | AO54: 1 | AP54: 2 | AQ54: 0 | AR54: 2 | AS54: 1 | AT54: 1 | AU54: 0 | AV54: 4 | AW54: 2 | AX54: 2
B55: 50 | C55: 273 | D55: 190 | E55: 83 | F55: 96 | G55: 73 | H55: 23 | I55: 31 | J55: 22 | K55: 9 | L55: 17 | M55: 11 | N55: 6 | O55: 1 | P55: 0 | Q55: 1 | R55: 35 | S55: 25 | T55: 10 | U55: 27 | V55: 19 | W55: 8 | X55: 1 | Y55: 1 | Z55: 0 | AA55: 39 | AB55: 22 | AC55: 17 | AD55: 17 | AE55: 11 | AF55: 6 | AG55: 0 | AH55: 0 | AI55: 0 | AJ55: 1 | AK55: 1 | AL55: 0 | AM55: 1 | AN55: 0 | AO55: 1 | AP55: 2 | AQ55: 1 | AR55: 1 | AS55: 1 | AT55: 1 | AU55: 0 | AV55: 4 | AW55: 3 | AX55: 1
B56: 51 | C56: 295 | D56: 209 | E56: 86 | F56: 111 | G56: 88 | H56: 23 | I56: 35 | J56: 21 | K56: 14 | L56: 12 | M56: 4 | N56: 8 | O56: 4 | P56: 4 | Q56: 0 | R56: 41 | S56: 30 | T56: 11 | U56: 18 | V56: 15 | W56: 3 | X56: 0 | Y56: 0 | Z56: 0 | AA56: 44 | AB56: 25 | AC56: 19 | AD56: 19 | AE56: 17 | AF56: 2 | AG56: 1 | AH56: 0 | AI56: 1 | AJ56: 2 | AK56: 0 | AL56: 2 | AM56: 5 | AN56: 3 | AO56: 2 | AP56: 1 | AQ56: 0 | AR56: 1 | AS56: 0 | AT56: 0 | AU56: 0 | AV56: 2 | AW56: 2 | AX56: 0
B57: 52 | C57: 257 | D57: 167 | E57: 90 | F57: 112 | G57: 81 | H57: 31 | I57: 24 | J57: 15 | K57: 9 | L57: 8 | M57: 6 | N57: 2 | O57: 1 | P57: 1 | Q57: 0 | R57: 29 | S57: 19 | T57: 10 | U57: 20 | V57: 16 | W57: 4 | X57: 0 | Y57: 0 | Z57: 0 | AA57: 35 | AB57: 17 | AC57: 18 | AD57: 20 | AE57: 10 | AF57: 10 | AG57: 0 | AH57: 0 | AI57: 0 | AJ57: 1 | AK57: 0 | AL57: 1 | AM57: 2 | AN57: 2 | AO57: 0 | AP57: 0 | AQ57: 0 | AR57: 0 | AS57: 1 | AT57: 0 | AU57: 1 | AV57: 4 | AW57: 0 | AX57: 4
B58: 53 | C58: 327 | D58: 227 | E58: 100 | F58: 144 | G58: 110 | H58: 34 | I58: 36 | J58: 26 | K58: 10 | L58: 19 | M58: 8 | N58: 11 | O58: 2 | P58: 1 | Q58: 1 | R58: 18 | S58: 14 | T58: 4 | U58: 34 | V58: 22 | W58: 12 | X58: 0 | Y58: 0 | Z58: 0 | AA58: 46 | AB58: 28 | AC58: 18 | AD58: 16 | AE58: 12 | AF58: 4 | AG58: 1 | AH58: 0 | AI58: 1 | AJ58: 1 | AK58: 0 | AL58: 1 | AM58: 5 | AN58: 4 | AO58: 1 | AP58: 0 | AQ58: 0 | AR58: 0 | AS58: 2 | AT58: 1 | AU58: 1 | AV58: 3 | AW58: 1 | AX58: 2
B59: 54 | C59: 313 | D59: 225 | E59: 88 | F59: 137 | G59: 104 | H59: 33 | I59: 36 | J59: 25 | K59: 11 | L59: 20 | M59: 14 | N59: 6 | O59: 3 | P59: 2 | Q59: 1 | R59: 17 | S59: 10 | T59: 7 | U59: 27 | V59: 18 | W59: 9 | X59: 0 | Y59: 0 | Z59: 0 | AA59: 45 | AB59: 33 | AC59: 12 | AD59: 19 | AE59: 13 | AF59: 6 | AG59: 1 | AH59: 1 | AI59: 0 | AJ59: 1 | AK59: 1 | AL59: 0 | AM59: 6 | AN59: 4 | AO59: 2 | AP59: 0 | AQ59: 0 | AR59: 0 | AS59: 0 | AT59: 0 | AU59: 0 | AV59: 1 | AW59: 0 | AX59: 1
B60: 55 | C60: 349 | D60: 240 | E60: 109 | F60: 161 | G60: 117 | H60: 44 | I60: 35 | J60: 24 | K60: 11 | L60: 19 | M60: 9 | N60: 10 | O60: 6 | P60: 4 | Q60: 2 | R60: 15 | S60: 13 | T60: 2 | U60: 27 | V60: 20 | W60: 7 | X60: 0 | Y60: 0 | Z60: 0 | AA60: 46 | AB60: 28 | AC60: 18 | AD60: 29 | AE60: 19 | AF60: 10 | AG60: 1 | AH60: 0 | AI60: 1 | AJ60: 2 | AK60: 0 | AL60: 2 | AM60: 4 | AN60: 4 | AO60: 0 | AP60: 1 | AQ60: 1 | AR60: 0 | AS60: 1 | AT60: 0 | AU60: 1 | AV60: 2 | AW60: 1 | AX60: 1
B61: 56 | C61: 338 | D61: 226 | E61: 112 | F61: 140 | G61: 96 | H61: 44 | I61: 44 | J61: 28 | K61: 16 | L61: 26 | M61: 16 | N61: 10 | O61: 4 | P61: 4 | Q61: 0 | R61: 21 | S61: 15 | T61: 6 | U61: 31 | V61: 23 | W61: 8 | X61: 0 | Y61: 0 | Z61: 0 | AA61: 36 | AB61: 20 | AC61: 16 | AD61: 22 | AE61: 12 | AF61: 10 | AG61: 1 | AH61: 1 | AI61: 0 | AJ61: 3 | AK61: 3 | AL61: 0 | AM61: 5 | AN61: 4 | AO61: 1 | AP61: 0 | AQ61: 0 | AR61: 0 | AS61: 3 | AT61: 2 | AU61: 1 | AV61: 2 | AW61: 2 | AX61: 0
B62: 57 | C62: 333 | D62: 209 | E62: 124 | F62: 153 | G62: 108 | H62: 45 | I62: 43 | J62: 22 | K62: 21 | L62: 32 | M62: 18 | N62: 14 | O62: 5 | P62: 4 | Q62: 1 | R62: 15 | S62: 8 | T62: 7 | U62: 26 | V62: 17 | W62: 9 | X62: 0 | Y62: 0 | Z62: 0 | AA62: 32 | AB62: 16 | AC62: 16 | AD62: 23 | AE62: 13 | AF62: 10 | AG62: 0 | AH62: 0 | AI62: 0 | AJ62: 1 | AK62: 0 | AL62: 1 | AM62: 3 | AN62: 3 | AO62: 0 | AP62: 0 | AQ62: 0 | AR62: 0 | AS62: 0 | AT62: 0 | AU62: 0 | AV62: 0 | AW62: 0 | AX62: 0
B63: 58 | C63: 338 | D63: 235 | E63: 103 | F63: 167 | G63: 119 | H63: 48 | I63: 41 | J63: 33 | K63: 8 | L63: 23 | M63: 14 | N63: 9 | O63: 1 | P63: 0 | Q63: 1 | R63: 13 | S63: 9 | T63: 4 | U63: 40 | V63: 25 | W63: 15 | X63: 0 | Y63: 0 | Z63: 0 | AA63: 24 | AB63: 17 | AC63: 7 | AD63: 18 | AE63: 11 | AF63: 7 | AG63: 2 | AH63: 1 | AI63: 1 | AJ63: 1 | AK63: 0 | AL63: 1 | AM63: 5 | AN63: 3 | AO63: 2 | AP63: 0 | AQ63: 0 | AR63: 0 | AS63: 3 | AT63: 3 | AU63: 0 | AV63: 0 | AW63: 0 | AX63: 0
B64: 59 | C64: 390 | D64: 269 | E64: 121 | F64: 188 | G64: 135 | H64: 53 | I64: 49 | J64: 33 | K64: 16 | L64: 25 | M64: 17 | N64: 8 | O64: 4 | P64: 4 | Q64: 0 | R64: 16 | S64: 14 | T64: 2 | U64: 40 | V64: 26 | W64: 14 | X64: 0 | Y64: 0 | Z64: 0 | AA64: 27 | AB64: 13 | AC64: 14 | AD64: 29 | AE64: 20 | AF64: 9 | AG64: 0 | AH64: 0 | AI64: 0 | AJ64: 2 | AK64: 2 | AL64: 0 | AM64: 8 | AN64: 5 | AO64: 3 | AP64: 1 | AQ64: 0 | AR64: 1 | AS64: 1 | AT64: 0 | AU64: 1 | AV64: 0 | AW64: 0 | AX64: 0
B65: 60 | C65: 410 | D65: 283 | E65: 127 | F65: 186 | G65: 128 | H65: 58 | I65: 51 | J65: 37 | K65: 14 | L65: 38 | M65: 28 | N65: 10 | O65: 2 | P65: 2 | Q65: 0 | R65: 12 | S65: 10 | T65: 2 | U65: 43 | V65: 32 | W65: 11 | X65: 0 | Y65: 0 | Z65: 0 | AA65: 44 | AB65: 27 | AC65: 17 | AD65: 18 | AE65: 8 | AF65: 10 | AG65: 1 | AH65: 0 | AI65: 1 | AJ65: 3 | AK65: 2 | AL65: 1 | AM65: 6 | AN65: 4 | AO65: 2 | AP65: 0 | AQ65: 0 | AR65: 0 | AS65: 3 | AT65: 3 | AU65: 0 | AV65: 3 | AW65: 2 | AX65: 1
B66: 61 | C66: 488 | D66: 327 | E66: 161 | F66: 232 | G66: 159 | H66: 73 | I66: 58 | J66: 38 | K66: 20 | L66: 44 | M66: 25 | N66: 19 | O66: 1 | P66: 1 | Q66: 0 | R66: 22 | S66: 14 | T66: 8 | U66: 55 | V66: 39 | W66: 16 | X66: 0 | Y66: 0 | Z66: 0 | AA66: 43 | AB66: 28 | AC66: 15 | AD66: 21 | AE66: 15 | AF66: 6 | AG66: 1 | AH66: 1 | AI66: 0 | AJ66: 1 | AK66: 0 | AL66: 1 | AM66: 5 | AN66: 3 | AO66: 2 | AP66: 0 | AQ66: 0 | AR66: 0 | AS66: 3 | AT66: 2 | AU66: 1 | AV66: 2 | AW66: 2 | AX66: 0
B67: 62 | C67: 517 | D67: 332 | E67: 185 | F67: 251 | G67: 159 | H67: 92 | I67: 49 | J67: 32 | K67: 17 | L67: 54 | M67: 30 | N67: 24 | O67: 5 | P67: 5 | Q67: 0 | R67: 12 | S67: 10 | T67: 2 | U67: 44 | V67: 29 | W67: 15 | X67: 0 | Y67: 0 | Z67: 0 | AA67: 43 | AB67: 32 | AC67: 11 | AD67: 29 | AE67: 17 | AF67: 12 | AG67: 2 | AH67: 1 | AI67: 1 | AJ67: 6 | AK67: 5 | AL67: 1 | AM67: 11 | AN67: 6 | AO67: 5 | AP67: 0 | AQ67: 0 | AR67: 0 | AS67: 8 | AT67: 3 | AU67: 5 | AV67: 3 | AW67: 3 | AX67: 0
B68: 63 | C68: 508 | D68: 342 | E68: 166 | F68: 243 | G68: 172 | H68: 71 | I68: 46 | J68: 32 | K68: 14 | L68: 45 | M68: 23 | N68: 22 | O68: 6 | P68: 3 | Q68: 3 | R68: 15 | S68: 8 | T68: 7 | U68: 70 | V68: 50 | W68: 20 | X68: 0 | Y68: 0 | Z68: 0 | AA68: 42 | AB68: 26 | AC68: 16 | AD68: 28 | AE68: 20 | AF68: 8 | AG68: 0 | AH68: 0 | AI68: 0 | AJ68: 3 | AK68: 1 | AL68: 2 | AM68: 7 | AN68: 5 | AO68: 2 | AP68: 0 | AQ68: 0 | AR68: 0 | AS68: 3 | AT68: 2 | AU68: 1 | AV68: 0 | AW68: 0 | AX68: 0
B69: 64 | C69: 461 | D69: 283 | E69: 178 | F69: 230 | G69: 137 | H69: 93 | I69: 54 | J69: 37 | K69: 17 | L69: 42 | M69: 24 | N69: 18 | O69: 5 | P69: 2 | Q69: 3 | R69: 13 | S69: 9 | T69: 4 | U69: 57 | V69: 35 | W69: 22 | X69: 0 | Y69: 0 | Z69: 0 | AA69: 29 | AB69: 22 | AC69: 7 | AD69: 19 | AE69: 7 | AF69: 12 | AG69: 0 | AH69: 0 | AI69: 0 | AJ69: 3 | AK69: 2 | AL69: 1 | AM69: 4 | AN69: 4 | AO69: 0 | AP69: 1 | AQ69: 1 | AR69: 0 | AS69: 4 | AT69: 3 | AU69: 1 | AV69: 0 | AW69: 0 | AX69: 0
B70: 65 | C70: 463 | D70: 285 | E70: 178 | F70: 244 | G70: 145 | H70: 99 | I70: 43 | J70: 26 | K70: 17 | L70: 53 | M70: 31 | N70: 22 | O70: 2 | P70: 0 | Q70: 2 | R70: 9 | S70: 6 | T70: 3 | U70: 50 | V70: 36 | W70: 14 | X70: 0 | Y70: 0 | Z70: 0 | AA70: 22 | AB70: 14 | AC70: 8 | AD70: 25 | AE70: 16 | AF70: 9 | AG70: 2 | AH70: 1 | AI70: 1 | AJ70: 6 | AK70: 4 | AL70: 2 | AM70: 3 | AN70: 2 | AO70: 1 | AP70: 1 | AQ70: 1 | AR70: 0 | AS70: 2 | AT70: 2 | AU70: 0 | AV70: 1 | AW70: 1 | AX70: 0
B71: 66 | C71: 475 | D71: 288 | E71: 187 | F71: 241 | G71: 143 | H71: 98 | I71: 38 | J71: 24 | K71: 14 | L71: 56 | M71: 28 | N71: 28 | O71: 5 | P71: 4 | Q71: 1 | R71: 12 | S71: 7 | T71: 5 | U71: 56 | V71: 38 | W71: 18 | X71: 0 | Y71: 0 | Z71: 0 | AA71: 21 | AB71: 17 | AC71: 4 | AD71: 30 | AE71: 16 | AF71: 14 | AG71: 2 | AH71: 1 | AI71: 1 | AJ71: 4 | AK71: 3 | AL71: 1 | AM71: 4 | AN71: 4 | AO71: 0 | AP71: 0 | AQ71: 0 | AR71: 0 | AS71: 4 | AT71: 2 | AU71: 2 | AV71: 2 | AW71: 1 | AX71: 1
B72: 67 | C72: 532 | D72: 325 | E72: 207 | F72: 268 | G72: 155 | H72: 113 | I72: 59 | J72: 42 | K72: 17 | L72: 48 | M72: 27 | N72: 21 | O72: 7 | P72: 6 | Q72: 1 | R72: 5 | S72: 2 | T72: 3 | U72: 64 | V72: 40 | W72: 24 | X72: 0 | Y72: 0 | Z72: 0 | AA72: 32 | AB72: 19 | AC72: 13 | AD72: 28 | AE72: 17 | AF72: 11 | AG72: 1 | AH72: 0 | AI72: 1 | AJ72: 5 | AK72: 4 | AL72: 1 | AM72: 6 | AN72: 6 | AO72: 0 | AP72: 0 | AQ72: 0 | AR72: 0 | AS72: 7 | AT72: 5 | AU72: 2 | AV72: 2 | AW72: 2 | AX72: 0
B73: 68 | C73: 483 | D73: 270 | E73: 213 | F73: 250 | G73: 134 | H73: 116 | I73: 40 | J73: 21 | K73: 19 | L73: 60 | M73: 39 | N73: 21 | O73: 4 | P73: 4 | Q73: 0 | R73: 6 | S73: 4 | T73: 2 | U73: 64 | V73: 36 | W73: 28 | X73: 0 | Y73: 0 | Z73: 0 | AA73: 17 | AB73: 11 | AC73: 6 | AD73: 24 | AE73: 12 | AF73: 12 | AG73: 0 | AH73: 0 | AI73: 0 | AJ73: 6 | AK73: 3 | AL73: 3 | AM73: 6 | AN73: 3 | AO73: 3 | AP73: 0 | AQ73: 0 | AR73: 0 | AS73: 5 | AT73: 3 | AU73: 2 | AV73: 1 | AW73: 0 | AX73: 1
B74: 69 | C74: 476 | D74: 269 | E74: 207 | F74: 220 | G74: 112 | H74: 108 | I74: 64 | J74: 33 | K74: 31 | L74: 62 | M74: 44 | N74: 18 | O74: 3 | P74: 2 | Q74: 1 | R74: 5 | S74: 4 | T74: 1 | U74: 55 | V74: 39 | W74: 16 | X74: 0 | Y74: 0 | Z74: 0 | AA74: 29 | AB74: 13 | AC74: 16 | AD74: 22 | AE74: 14 | AF74: 8 | AG74: 0 | AH74: 0 | AI74: 0 | AJ74: 4 | AK74: 3 | AL74: 1 | AM74: 5 | AN74: 2 | AO74: 3 | AP74: 0 | AQ74: 0 | AR74: 0 | AS74: 7 | AT74: 3 | AU74: 4 | AV74: 0 | AW74: 0 | AX74: 0
B75: 70 | C75: 507 | D75: 313 | E75: 194 | F75: 243 | G75: 132 | H75: 111 | I75: 49 | J75: 34 | K75: 15 | L75: 72 | M75: 44 | N75: 28 | O75: 3 | P75: 3 | Q75: 0 | R75: 9 | S75: 8 | T75: 1 | U75: 70 | V75: 51 | W75: 19 | X75: 0 | Y75: 0 | Z75: 0 | AA75: 14 | AB75: 11 | AC75: 3 | AD75: 25 | AE75: 15 | AF75: 10 | AG75: 0 | AH75: 0 | AI75: 0 | AJ75: 3 | AK75: 2 | AL75: 1 | AM75: 7 | AN75: 5 | AO75: 2 | AP75: 1 | AQ75: 0 | AR75: 1 | AS75: 11 | AT75: 8 | AU75: 3 | AV75: 0 | AW75: 0 | AX75: 0
B76: 71 | C76: 409 | D76: 208 | E76: 201 | F76: 202 | G76: 87 | H76: 115 | I76: 30 | J76: 15 | K76: 15 | L76: 63 | M76: 39 | N76: 24 | O76: 5 | P76: 5 | Q76: 0 | R76: 6 | S76: 4 | T76: 2 | U76: 50 | V76: 26 | W76: 24 | X76: 0 | Y76: 0 | Z76: 0 | AA76: 16 | AB76: 6 | AC76: 10 | AD76: 24 | AE76: 16 | AF76: 8 | AG76: 0 | AH76: 0 | AI76: 0 | AJ76: 4 | AK76: 4 | AL76: 0 | AM76: 4 | AN76: 4 | AO76: 0 | AP76: 1 | AQ76: 1 | AR76: 0 | AS76: 4 | AT76: 1 | AU76: 3 | AV76: 0 | AW76: 0 | AX76: 0
B77: 72 | C77: 519 | D77: 297 | E77: 222 | F77: 245 | G77: 127 | H77: 118 | I77: 50 | J77: 26 | K77: 24 | L77: 95 | M77: 64 | N77: 31 | O77: 3 | P77: 3 | Q77: 0 | R77: 4 | S77: 4 | T77: 0 | U77: 61 | V77: 33 | W77: 28 | X77: 0 | Y77: 0 | Z77: 0 | AA77: 22 | AB77: 16 | AC77: 6 | AD77: 26 | AE77: 15 | AF77: 11 | AG77: 0 | AH77: 0 | AI77: 0 | AJ77: 5 | AK77: 4 | AL77: 1 | AM77: 4 | AN77: 3 | AO77: 1 | AP77: 0 | AQ77: 0 | AR77: 0 | AS77: 4 | AT77: 2 | AU77: 2 | AV77: 0 | AW77: 0 | AX77: 0
B78: 73 | C78: 540 | D78: 291 | E78: 249 | F78: 253 | G78: 118 | H78: 135 | I78: 76 | J78: 43 | K78: 33 | L78: 101 | M78: 60 | N78: 41 | O78: 3 | P78: 0 | Q78: 3 | R78: 3 | S78: 2 | T78: 1 | U78: 59 | V78: 38 | W78: 21 | X78: 0 | Y78: 0 | Z78: 0 | AA78: 12 | AB78: 9 | AC78: 3 | AD78: 19 | AE78: 11 | AF78: 8 | AG78: 0 | AH78: 0 | AI78: 0 | AJ78: 6 | AK78: 5 | AL78: 1 | AM78: 4 | AN78: 4 | AO78: 0 | AP78: 0 | AQ78: 0 | AR78: 0 | AS78: 2 | AT78: 1 | AU78: 1 | AV78: 2 | AW78: 0 | AX78: 2
B79: 74 | C79: 523 | D79: 283 | E79: 240 | F79: 251 | G79: 121 | H79: 130 | I79: 61 | J79: 32 | K79: 29 | L79: 102 | M79: 66 | N79: 36 | O79: 8 | P79: 6 | Q79: 2 | R79: 0 | S79: 0 | T79: 0 | U79: 52 | V79: 31 | W79: 21 | X79: 0 | Y79: 0 | Z79: 0 | AA79: 8 | AB79: 5 | AC79: 3 | AD79: 21 | AE79: 11 | AF79: 10 | AG79: 1 | AH79: 0 | AI79: 1 | AJ79: 6 | AK79: 4 | AL79: 2 | AM79: 5 | AN79: 2 | AO79: 3 | AP79: 0 | AQ79: 0 | AR79: 0 | AS79: 8 | AT79: 5 | AU79: 3 | AV79: 0 | AW79: 0 | AX79: 0
B80: 75 | C80: 566 | D80: 321 | E80: 245 | F80: 269 | G80: 137 | H80: 132 | I80: 78 | J80: 46 | K80: 32 | L80: 122 | M80: 80 | N80: 42 | O80: 4 | P80: 3 | Q80: 1 | R80: 3 | S80: 1 | T80: 2 | U80: 51 | V80: 32 | W80: 19 | X80: 0 | Y80: 0 | Z80: 0 | AA80: 9 | AB80: 3 | AC80: 6 | AD80: 16 | AE80: 11 | AF80: 5 | AG80: 1 | AH80: 0 | AI80: 1 | AJ80: 6 | AK80: 5 | AL80: 1 | AM80: 0 | AN80: 0 | AO80: 0 | AP80: 0 | AQ80: 0 | AR80: 0 | AS80: 7 | AT80: 3 | AU80: 4 | AV80: 0 | AW80: 0 | AX80: 0
B81: 76 | C81: 452 | D81: 235 | E81: 217 | F81: 228 | G81: 102 | H81: 126 | I81: 52 | J81: 21 | K81: 31 | L81: 82 | M81: 53 | N81: 29 | O81: 4 | P81: 2 | Q81: 2 | R81: 0 | S81: 0 | T81: 0 | U81: 55 | V81: 36 | W81: 19 | X81: 0 | Y81: 0 | Z81: 0 | AA81: 4 | AB81: 2 | AC81: 2 | AD81: 15 | AE81: 10 | AF81: 5 | AG81: 1 | AH81: 1 | AI81: 0 | AJ81: 6 | AK81: 6 | AL81: 0 | AM81: 0 | AN81: 0 | AO81: 0 | AP81: 0 | AQ81: 0 | AR81: 0 | AS81: 5 | AT81: 2 | AU81: 3 | AV81: 0 | AW81: 0 | AX81: 0
B82: 77 | C82: 459 | D82: 218 | E82: 241 | F82: 225 | G82: 94 | H82: 131 | I82: 49 | J82: 25 | K82: 24 | L82: 102 | M82: 57 | N82: 45 | O82: 3 | P82: 2 | Q82: 1 | R82: 3 | S82: 2 | T82: 1 | U82: 43 | V82: 18 | W82: 25 | X82: 0 | Y82: 0 | Z82: 0 | AA82: 5 | AB82: 3 | AC82: 2 | AD82: 14 | AE82: 5 | AF82: 9 | AG82: 0 | AH82: 0 | AI82: 0 | AJ82: 7 | AK82: 5 | AL82: 2 | AM82: 1 | AN82: 1 | AO82: 0 | AP82: 1 | AQ82: 1 | AR82: 0 | AS82: 6 | AT82: 5 | AU82: 1 | AV82: 0 | AW82: 0 | AX82: 0
B83: 78 | C83: 501 | D83: 252 | E83: 249 | F83: 232 | G83: 92 | H83: 140 | I83: 51 | J83: 26 | K83: 25 | L83: 116 | M83: 70 | N83: 46 | O83: 5 | P83: 5 | Q83: 0 | R83: 2 | S83: 1 | T83: 1 | U83: 58 | V83: 30 | W83: 28 | X83: 0 | Y83: 0 | Z83: 0 | AA83: 6 | AB83: 5 | AC83: 1 | AD83: 18 | AE83: 13 | AF83: 5 | AG83: 1 | AH83: 0 | AI83: 1 | AJ83: 3 | AK83: 3 | AL83: 0 | AM83: 1 | AN83: 0 | AO83: 1 | AP83: 1 | AQ83: 1 | AR83: 0 | AS83: 6 | AT83: 6 | AU83: 0 | AV83: 1 | AW83: 0 | AX83: 1
B84: 79 | C84: 560 | D84: 271 | E84: 289 | F84: 252 | G84: 92 | H84: 160 | I84: 65 | J84: 40 | K84: 25 | L84: 150 | M84: 93 | N84: 57 | O84: 4 | P84: 3 | Q84: 1 | R84: 1 | S84: 0 | T84: 1 | U84: 49 | V84: 26 | W84: 23 | X84: 0 | Y84: 0 | Z84: 0 | AA84: 5 | AB84: 4 | AC84: 1 | AD84: 22 | AE84: 8 | AF84: 14 | AG84: 1 | AH84: 0 | AI84: 1 | AJ84: 4 | AK84: 3 | AL84: 1 | AM84: 2 | AN84: 0 | AO84: 2 | AP84: 2 | AQ84: 1 | AR84: 1 | AS84: 3 | AT84: 1 | AU84: 2 | AV84: 0 | AW84: 0 | AX84: 0
B85: 80 | C85: 626 | D85: 294 | E85: 332 | F85: 290 | G85: 106 | H85: 184 | I85: 70 | J85: 33 | K85: 37 | L85: 149 | M85: 85 | N85: 64 | O85: 2 | P85: 1 | Q85: 1 | R85: 2 | S85: 2 | T85: 0 | U85: 69 | V85: 38 | W85: 31 | X85: 0 | Y85: 0 | Z85: 0 | AA85: 2 | AB85: 0 | AC85: 2 | AD85: 21 | AE85: 14 | AF85: 7 | AG85: 1 | AH85: 1 | AI85: 0 | AJ85: 3 | AK85: 3 | AL85: 0 | AM85: 2 | AN85: 0 | AO85: 2 | AP85: 1 | AQ85: 0 | AR85: 1 | AS85: 12 | AT85: 10 | AU85: 2 | AV85: 2 | AW85: 1 | AX85: 1
B86: 81 | C86: 464 | D86: 217 | E86: 247 | F86: 203 | G86: 74 | H86: 129 | I86: 45 | J86: 22 | K86: 23 | L86: 134 | M86: 74 | N86: 60 | O86: 2 | P86: 2 | Q86: 0 | R86: 2 | S86: 2 | T86: 0 | U86: 49 | V86: 26 | W86: 23 | X86: 0 | Y86: 0 | Z86: 0 | AA86: 3 | AB86: 1 | AC86: 2 | AD86: 16 | AE86: 9 | AF86: 7 | AG86: 0 | AH86: 0 | AI86: 0 | AJ86: 3 | AK86: 2 | AL86: 1 | AM86: 0 | AN86: 0 | AO86: 0 | AP86: 0 | AQ86: 0 | AR86: 0 | AS86: 7 | AT86: 5 | AU86: 2 | AV86: 0 | AW86: 0 | AX86: 0
B87: 82 | C87: 416 | D87: 202 | E87: 214 | F87: 175 | G87: 76 | H87: 99 | I87: 47 | J87: 22 | K87: 25 | L87: 120 | M87: 71 | N87: 49 | O87: 1 | P87: 1 | Q87: 0 | R87: 0 | S87: 0 | T87: 0 | U87: 46 | V87: 19 | W87: 27 | X87: 0 | Y87: 0 | Z87: 0 | AA87: 0 | AB87: 0 | AC87: 0 | AD87: 19 | AE87: 8 | AF87: 11 | AG87: 0 | AH87: 0 | AI87: 0 | AJ87: 2 | AK87: 1 | AL87: 1 | AM87: 1 | AN87: 1 | AO87: 0 | AP87: 1 | AQ87: 0 | AR87: 1 | AS87: 4 | AT87: 3 | AU87: 1 | AV87: 0 | AW87: 0 | AX87: 0
B88: 83 | C88: 439 | D88: 214 | E88: 225 | F88: 165 | G88: 53 | H88: 112 | I88: 48 | J88: 26 | K88: 22 | L88: 148 | M88: 94 | N88: 54 | O88: 4 | P88: 3 | Q88: 1 | R88: 0 | S88: 0 | T88: 0 | U88: 44 | V88: 19 | W88: 25 | X88: 0 | Y88: 0 | Z88: 0 | AA88: 3 | AB88: 1 | AC88: 2 | AD88: 14 | AE88: 10 | AF88: 4 | AG88: 1 | AH88: 0 | AI88: 1 | AJ88: 1 | AK88: 1 | AL88: 0 | AM88: 0 | AN88: 0 | AO88: 0 | AP88: 0 | AQ88: 0 | AR88: 0 | AS88: 11 | AT88: 7 | AU88: 4 | AV88: 0 | AW88: 0 | AX88: 0
B89: 84 | C89: 396 | D89: 175 | E89: 221 | F89: 156 | G89: 52 | H89: 104 | I89: 33 | J89: 14 | K89: 19 | L89: 140 | M89: 74 | N89: 66 | O89: 2 | P89: 1 | Q89: 1 | R89: 1 | S89: 1 | T89: 0 | U89: 36 | V89: 16 | W89: 20 | X89: 0 | Y89: 0 | Z89: 0 | AA89: 1 | AB89: 1 | AC89: 0 | AD89: 13 | AE89: 8 | AF89: 5 | AG89: 2 | AH89: 0 | AI89: 2 | AJ89: 2 | AK89: 2 | AL89: 0 | AM89: 0 | AN89: 0 | AO89: 0 | AP89: 0 | AQ89: 0 | AR89: 0 | AS89: 10 | AT89: 6 | AU89: 4 | AV89: 0 | AW89: 0 | AX89: 0
B90: 85 | C90: 372 | D90: 152 | E90: 220 | F90: 164 | G90: 49 | H90: 115 | I90: 29 | J90: 18 | K90: 11 | L90: 128 | M90: 62 | N90: 66 | O90: 2 | P90: 2 | Q90: 0 | R90: 0 | S90: 0 | T90: 0 | U90: 36 | V90: 10 | W90: 26 | X90: 0 | Y90: 0 | Z90: 0 | AA90: 1 | AB90: 1 | AC90: 0 | AD90: 7 | AE90: 5 | AF90: 2 | AG90: 2 | AH90: 2 | AI90: 0 | AJ90: 0 | AK90: 0 | AL90: 0 | AM90: 0 | AN90: 0 | AO90: 0 | AP90: 0 | AQ90: 0 | AR90: 0 | AS90: 3 | AT90: 3 | AU90: 0 | AV90: 0 | AW90: 0 | AX90: 0
B91: 86 | C91: 312 | D91: 127 | E91: 185 | F91: 109 | G91: 28 | H91: 81 | I91: 32 | J91: 14 | K91: 18 | L91: 113 | M91: 56 | N91: 57 | O91: 1 | P91: 0 | Q91: 1 | R91: 0 | S91: 0 | T91: 0 | U91: 39 | V91: 19 | W91: 20 | X91: 0 | Y91: 0 | Z91: 0 | AA91: 0 | AB91: 0 | AC91: 0 | AD91: 13 | AE91: 7 | AF91: 6 | AG91: 1 | AH91: 1 | AI91: 0 | AJ91: 2 | AK91: 1 | AL91: 1 | AM91: 1 | AN91: 0 | AO91: 1 | AP91: 0 | AQ91: 0 | AR91: 0 | AS91: 1 | AT91: 1 | AU91: 0 | AV91: 0 | AW91: 0 | AX91: 0
B92: 87 | C92: 270 | D92: 93 | E92: 177 | F92: 97 | G92: 22 | H92: 75 | I92: 26 | J92: 9 | K92: 17 | L92: 101 | M92: 42 | N92: 59 | O92: 0 | P92: 0 | Q92: 0 | R92: 2 | S92: 0 | T92: 2 | U92: 26 | V92: 7 | W92: 19 | X92: 0 | Y92: 0 | Z92: 0 | AA92: 2 | AB92: 1 | AC92: 1 | AD92: 8 | AE92: 6 | AF92: 2 | AG92: 1 | AH92: 0 | AI92: 1 | AJ92: 1 | AK92: 1 | AL92: 0 | AM92: 0 | AN92: 0 | AO92: 0 | AP92: 0 | AQ92: 0 | AR92: 0 | AS92: 6 | AT92: 5 | AU92: 1 | AV92: 0 | AW92: 0 | AX92: 0
B93: 88 | C93: 196 | D93: 77 | E93: 119 | F93: 72 | G93: 19 | H93: 53 | I93: 17 | J93: 7 | K93: 10 | L93: 84 | M93: 42 | N93: 42 | O93: 1 | P93: 1 | Q93: 0 | R93: 0 | S93: 0 | T93: 0 | U93: 16 | V93: 6 | W93: 10 | X93: 0 | Y93: 0 | Z93: 0 | AA93: 1 | AB93: 0 | AC93: 1 | AD93: 3 | AE93: 1 | AF93: 2 | AG93: 1 | AH93: 1 | AI93: 0 | AJ93: 0 | AK93: 0 | AL93: 0 | AM93: 0 | AN93: 0 | AO93: 0 | AP93: 0 | AQ93: 0 | AR93: 0 | AS93: 1 | AT93: 0 | AU93: 1 | AV93: 0 | AW93: 0 | AX93: 0
B94: 89 | C94: 165 | D94: 64 | E94: 101 | F94: 42 | G94: 11 | H94: 31 | I94: 17 | J94: 6 | K94: 11 | L94: 85 | M94: 38 | N94: 47 | O94: 2 | P94: 2 | Q94: 0 | R94: 0 | S94: 0 | T94: 0 | U94: 16 | V94: 6 | W94: 10 | X94: 0 | Y94: 0 | Z94: 0 | AA94: 0 | AB94: 0 | AC94: 0 | AD94: 2 | AE94: 1 | AF94: 1 | AG94: 0 | AH94: 0 | AI94: 0 | AJ94: 0 | AK94: 0 | AL94: 0 | AM94: 0 | AN94: 0 | AO94: 0 | AP94: 0 | AQ94: 0 | AR94: 0 | AS94: 1 | AT94: 0 | AU94: 1 | AV94: 0 | AW94: 0 | AX94: 0
B95: 90 | C95: 117 | D95: 38 | E95: 79 | F95: 42 | G95: 6 | H95: 36 | I95: 6 | J95: 3 | K95: 3 | L95: 55 | M95: 25 | N95: 30 | O95: 0 | P95: 0 | Q95: 0 | R95: 0 | S95: 0 | T95: 0 | U95: 10 | V95: 2 | W95: 8 | X95: 0 | Y95: 0 | Z95: 0 | AA95: 0 | AB95: 0 | AC95: 0 | AD95: 2 | AE95: 0 | AF95: 2 | AG95: 0 | AH95: 0 | AI95: 0 | AJ95: 0 | AK95: 0 | AL95: 0 | AM95: 0 | AN95: 0 | AO95: 0 | AP95: 0 | AQ95: 0 | AR95: 0 | AS95: 2 | AT95: 2 | AU95: 0 | AV95: 0 | AW95: 0 | AX95: 0
B96: 91 | C96: 87 | D96: 28 | E96: 59 | F96: 26 | G96: 7 | H96: 19 | I96: 10 | J96: 3 | K96: 7 | L96: 40 | M96: 14 | N96: 26 | O96: 0 | P96: 0 | Q96: 0 | R96: 0 | S96: 0 | T96: 0 | U96: 10 | V96: 3 | W96: 7 | X96: 0 | Y96: 0 | Z96: 0 | AA96: 0 | AB96: 0 | AC96: 0 | AD96: 0 | AE96: 0 | AF96: 0 | AG96: 0 | AH96: 0 | AI96: 0 | AJ96: 0 | AK96: 0 | AL96: 0 | AM96: 0 | AN96: 0 | AO96: 0 | AP96: 0 | AQ96: 0 | AR96: 0 | AS96: 1 | AT96: 1 | AU96: 0 | AV96: 0 | AW96: 0 | AX96: 0
B97: 92 | C97: 74 | D97: 20 | E97: 54 | F97: 21 | G97: 3 | H97: 18 | I97: 5 | J97: 1 | K97: 4 | L97: 38 | M97: 11 | N97: 27 | O97: 0 | P97: 0 | Q97: 0 | R97: 0 | S97: 0 | T97: 0 | U97: 8 | V97: 4 | W97: 4 | X97: 0 | Y97: 0 | Z97: 0 | AA97: 0 | AB97: 0 | AC97: 0 | AD97: 2 | AE97: 1 | AF97: 1 | AG97: 0 | AH97: 0 | AI97: 0 | AJ97: 0 | AK97: 0 | AL97: 0 | AM97: 0 | AN97: 0 | AO97: 0 | AP97: 0 | AQ97: 0 | AR97: 0 | AS97: 0 | AT97: 0 | AU97: 0 | AV97: 0 | AW97: 0 | AX97: 0
B98: 93 | C98: 68 | D98: 28 | E98: 40 | F98: 17 | G98: 3 | H98: 14 | I98: 7 | J98: 3 | K98: 4 | L98: 35 | M98: 17 | N98: 18 | O98: 1 | P98: 1 | Q98: 0 | R98: 0 | S98: 0 | T98: 0 | U98: 5 | V98: 1 | W98: 4 | X98: 0 | Y98: 0 | Z98: 0 | AA98: 0 | AB98: 0 | AC98: 0 | AD98: 1 | AE98: 1 | AF98: 0 | AG98: 0 | AH98: 0 | AI98: 0 | AJ98: 1 | AK98: 1 | AL98: 0 | AM98: 0 | AN98: 0 | AO98: 0 | AP98: 0 | AQ98: 0 | AR98: 0 | AS98: 1 | AT98: 1 | AU98: 0 | AV98: 0 | AW98: 0 | AX98: 0
B99: 94 | C99: 44 | D99: 15 | E99: 29 | F99: 16 | G99: 3 | H99: 13 | I99: 2 | J99: 0 | K99: 2 | L99: 22 | M99: 11 | N99: 11 | O99: 0 | P99: 0 | Q99: 0 | R99: 0 | S99: 0 | T99: 0 | U99: 2 | V99: 0 | W99: 2 | X99: 0 | Y99: 0 | Z99: 0 | AA99: 0 | AB99: 0 | AC99: 0 | AD99: 0 | AE99: 0 | AF99: 0 | AG99: 0 | AH99: 0 | AI99: 0 | AJ99: 0 | AK99: 0 | AL99: 0 | AM99: 0 | AN99: 0 | AO99: 0 | AP99: 0 | AQ99: 0 | AR99: 0 | AS99: 2 | AT99: 1 | AU99: 1 | AV99: 0 | AW99: 0 | AX99: 0
B100: 95 | C100: 30 | D100: 10 | E100: 20 | F100: 10 | G100: 2 | H100: 8 | I100: 1 | J100: 1 | K100: 0 | L100: 19 | M100: 7 | N100: 12 | O100: 0 | P100: 0 | Q100: 0 | R100: 0 | S100: 0 | T100: 0 | U100: 0 | V100: 0 | W100: 0 | X100: 0 | Y100: 0 | Z100: 0 | AA100: 0 | AB100: 0 | AC100: 0 | AD100: 0 | AE100: 0 | AF100: 0 | AG100: 0 | AH100: 0 | AI100: 0 | AJ100: 0 | AK100: 0 | AL100: 0 | AM100: 0 | AN100: 0 | AO100: 0 | AP100: 0 | AQ100: 0 | AR100: 0 | AS100: 0 | AT100: 0 | AU100: 0 | AV100: 0 | AW100: 0 | AX100: 0
B101: 96 | C101: 16 | D101: 2 | E101: 14 | F101: 6 | G101: 0 | H101: 6 | I101: 0 | J101: 0 | K101: 0 | L101: 10 | M101: 2 | N101: 8 | O101: 0 | P101: 0 | Q101: 0 | R101: 0 | S101: 0 | T101: 0 | U101: 0 | V101: 0 | W101: 0 | X101: 0 | Y101: 0 | Z101: 0 | AA101: 0 | AB101: 0 | AC101: 0 | AD101: 0 | AE101: 0 | AF101: 0 | AG101: 0 | AH101: 0 | AI101: 0 | AJ101: 0 | AK101: 0 | AL101: 0 | AM101: 0 | AN101: 0 | AO101: 0 | AP101: 0 | AQ101: 0 | AR101: 0 | AS101: 0 | AT101: 0 | AU101: 0 | AV101: 0 | AW101: 0 | AX101: 0
B102: 97 | C102: 14 | D102: 6 | E102: 8 | F102: 3 | G102: 1 | H102: 2 | I102: 0 | J102: 0 | K102: 0 | L102: 10 | M102: 5 | N102: 5 | O102: 0 | P102: 0 | Q102: 0 | R102: 0 | S102: 0 | T102: 0 | U102: 0 | V102: 0 | W102: 0 | X102: 0 | Y102: 0 | Z102: 0 | AA102: 0 | AB102: 0 | AC102: 0 | AD102: 0 | AE102: 0 | AF102: 0 | AG102: 0 | AH102: 0 | AI102: 0 | AJ102: 0 | AK102: 0 | AL102: 0 | AM102: 0 | AN102: 0 | AO102: 0 | AP102: 0 | AQ102: 0 | AR102: 0 | AS102: 1 | AT102: 0 | AU102: 1 | AV102: 0 | AW102: 0 | AX102: 0
B103: 98 | C103: 8 | D103: 3 | E103: 5 | F103: 2 | G103: 0 | H103: 2 | I103: 1 | J103: 1 | K103: 0 | L103: 4 | M103: 1 | N103: 3 | O103: 0 | P103: 0 | Q103: 0 | R103: 0 | S103: 0 | T103: 0 | U103: 0 | V103: 0 | W103: 0 | X103: 0 | Y103: 0 | Z103: 0 | AA103: 0 | AB103: 0 | AC103: 0 | AD103: 1 | AE103: 1 | AF103: 0 | AG103: 0 | AH103: 0 | AI103: 0 | AJ103: 0 | AK103: 0 | AL103: 0 | AM103: 0 | AN103: 0 | AO103: 0 | AP103: 0 | AQ103: 0 | AR103: 0 | AS103: 0 | AT103: 0 | AU103: 0 | AV103: 0 | AW103: 0 | AX103: 0
B104: 99 | C104: 8 | D104: 2 | E104: 6 | F104: 2 | G104: 0 | H104: 2 | I104: 1 | J104: 0 | K104: 1 | L104: 4 | M104: 1 | N104: 3 | O104: 0 | P104: 0 | Q104: 0 | R104: 0 | S104: 0 | T104: 0 | U104: 0 | V104: 0 | W104: 0 | X104: 0 | Y104: 0 | Z104: 0 | AA104: 0 | AB104: 0 | AC104: 0 | AD104: 0 | AE104: 0 | AF104: 0 | AG104: 0 | AH104: 0 | AI104: 0 | AJ104: 0 | AK104: 0 | AL104: 0 | AM104: 0 | AN104: 0 | AO104: 0 | AP104: 0 | AQ104: 0 | AR104: 0 | AS104: 1 | AT104: 1 | AU104: 0 | AV104: 0 | AW104: 0 | AX104: 0
B105: 100 | C105: 2 | D105: 1 | E105: 1 | F105: 0 | G105: 0 | H105: 0 | I105: 0 | J105: 0 | K105: 0 | L105: 1 | M105: 0 | N105: 1 | O105: 0 | P105: 0 | Q105: 0 | R105: 0 | S105: 0 | T105: 0 | U105: 0 | V105: 0 | W105: 0 | X105: 0 | Y105: 0 | Z105: 0 | AA105: 0 | AB105: 0 | AC105: 0 | AD105: 0 | AE105: 0 | AF105: 0 | AG105: 0 | AH105: 0 | AI105: 0 | AJ105: 0 | AK105: 0 | AL105: 0 | AM105: 0 | AN105: 0 | AO105: 0 | AP105: 0 | AQ105: 0 | AR105: 0 | AS105: 1 | AT105: 1 | AU105: 0 | AV105: 0 | AW105: 0 | AX105: 0
B106: 101 | C106: 4 | D106: 1 | E106: 3 | F106: 2 | G106: 1 | H106: 1 | I106: 0 | J106: 0 | K106: 0 | L106: 2 | M106: 0 | N106: 2 | O106: 0 | P106: 0 | Q106: 0 | R106: 0 | S106: 0 | T106: 0 | U106: 0 | V106: 0 | W106: 0 | X106: 0 | Y106: 0 | Z106: 0 | AA106: 0 | AB106: 0 | AC106: 0 | AD106: 0 | AE106: 0 | AF106: 0 | AG106: 0 | AH106: 0 | AI106: 0 | AJ106: 0 | AK106: 0 | AL106: 0 | AM106: 0 | AN106: 0 | AO106: 0 | AP106: 0 | AQ106: 0 | AR106: 0 | AS106: 0 | AT106: 0 | AU106: 0 | AV106: 0 | AW106: 0 | AX106: 0
B107: 103 | C107: 2 | D107: 0 | E107: 2 | F107: 0 | G107: 0 | H107: 0 | I107: 0 | J107: 0 | K107: 0 | L107: 2 | M107: 0 | N107: 2 | O107: 0 | P107: 0 | Q107: 0 | R107: 0 | S107: 0 | T107: 0 | U107: 0 | V107: 0 | W107: 0 | X107: 0 | Y107: 0 | Z107: 0 | AA107: 0 | AB107: 0 | AC107: 0 | AD107: 0 | AE107: 0 | AF107: 0 | AG107: 0 | AH107: 0 | AI107: 0 | AJ107: 0 | AK107: 0 | AL107: 0 | AM107: 0 | AN107: 0 | AO107: 0 | AP107: 0 | AQ107: 0 | AR107: 0 | AS107: 0 | AT107: 0 | AU107: 0 | AV107: 0 | AW107: 0 | AX107: 0
B108: 111 | C108: 1 | D108: 1 | E108: 0 | F108: 0 | G108: 0 | H108: 0 | I108: 0 | J108: 0 | K108: 0 | L108: 1 | M108: 1 | N108: 0 | O108: 0 | P108: 0 | Q108: 0 | R108: 0 | S108: 0 | T108: 0 | U108: 0 | V108: 0 | W108: 0 | X108: 0 | Y108: 0 | Z108: 0 | AA108: 0 | AB108: 0 | AC108: 0 | AD108: 0 | AE108: 0 | AF108: 0 | AG108: 0 | AH108: 0 | AI108: 0 | AJ108: 0 | AK108: 0 | AL108: 0 | AM108: 0 | AN108: 0 | AO108: 0 | AP108: 0 | AQ108: 0 | AR108: 0 | AS108: 0 | AT108: 0 | AU108: 0 | AV108: 0 | AW108: 0 | AX108: 0

Sheet Sheet1
